{"text_format":"1","workbook":"xlsx","n_sheets":3,"sheets":["Jahresüberblick","Januar","Datenbank"],"not_rendered":{"charts":0,"images":0,"macros":1,"external_links":1,"defined_names":393,"comments":1,"pivot_tables":0},"unopened":[],"bounds":{"document_bytes":16777216,"sheet_cells":100000,"rows_first":2000,"rows_last":500,"rows_between":2000,"halvings":0,"cell_chars":16384,"cell_head_chars":4096},"cells_cut":0,"cells_raw":0,"read":"whole","date_system":"1904"}

{"sheet":"Jahresüberblick","index":0,"n_rows":464,"n_cols":60,"rows_kept":464,"cut":false,"hidden":false,"merged":[]}
[]
[]
[]
[null,null,null,null,null,null,null,null,null,null,null,null,null,null,null,null,null,null,null,null,null,null,null,null,null,null,null,null,2025]
[null,null,null,null,null,null,null,null,null,null,null,null,null,null,null,null,null,null,null,null,null,null,null,null,null,null,null,null,{"$f":"TODAY()","v":"2024-12-08"}]
[null,null,null,1,null,0,null,null,"Januar",null,null,null,null,2,null,null,null,null,"Februar",null,null,null,null,3,null,null,null,null,"März",null,null,null,null,4,null,null,null,null,"April",null,null,null,null,5,null,null,null,null,"Mai",null,null,null,null,6,null,null,null,null,"Juni"]
[null,null,null,{"$f":"DATE(Jahr,Monat1,1)","v":"2025-01-01"},{"$f":"WEEKDAY(D7,2)+2","v":"1904-01-06"},null,null,"Neujahr",null,{"$f":"IF(D7<>\"\",IF(WEEKDAY(D7)=4,TRUNC((D7-(YEAR(D7+MOD((8-WEEKDAY(D7)),7)-3)&\"/1/1\")-3+MOD((WEEKDAY((YEAR(D7+MOD((8-WEEKDAY(D7)),7)-3)&\"/1/1\"))+1),7))/7+1),\"\"),\"\")","v":1},null,null,null,{"$f":"DATE(Jahr,N6,1)","v":"2025-02-01"},{"$f":"WEEKDAY(N7,2)+2","v":"1904-01-09"},null,null,{"$f":"IF(N7=$S$82,\"Ostersonntag\",IF(N7=$S$83,\"Ostermontag\",IF(N7=$S$81,\"Karfreitag\",IF(N7=$S$79,\"Rosenmontag\",IF(N7=$S$80,\"Aschermittwoch\",\" \")))))","v":" "},null,{"$f":"IF(N7<>\"\",IF(WEEKDAY(N7)=4,TRUNC((N7-(YEAR(N7+MOD((8-WEEKDAY(N7)),7)-3)&\"/1/1\")-3+MOD((WEEKDAY((YEAR(N7+MOD((8-WEEKDAY(N7)),7)-3)&\"/1/1\"))+1),7))/7+1),\"\"),\"\")","v":""},null,null,null,{"$f":"DATE(Jahr,X6,1)","v":"2025-03-01"},{"$f":"WEEKDAY(X7,2)+2","v":"1904-01-09"},null,null,{"$f":"IF(X7=$S$82,\"Ostersonntag\",IF(X7=$S$83,\"Ostermontag\",IF(X7=$S$81,\"Karfreitag\",IF(X7=$S$79,\"Rosenmontag\",IF(X7=$S$80,\"Aschermittwoch\",\" \")))))","v":" "},null,{"$f":"IF(X7<>\"\",IF(WEEKDAY(X7)=4,TRUNC((X7-(YEAR(X7+MOD((8-WEEKDAY(X7)),7)-3)&\"/1/1\")-3+MOD((WEEKDAY((YEAR(X7+MOD((8-WEEKDAY(X7)),7)-3)&\"/1/1\"))+1),7))/7+1),\"\"),\"\")","v":""},null,null,null,{"$f":"DATE(Jahr,AH6,1)","v":"2025-04-01"},{"$f":"WEEKDAY(AH7,2)+2","v":"1904-01-05"},null,null,{"$f":"IF(AH7=$S$82,\"Ostersonntag\",IF(AH7=$S$83,\"Ostermontag\",IF(AH7=$S$81,\"Karfreitag\",\" \")))","v":" "},null,{"$f":"IF(AH7<>\"\",IF(WEEKDAY(AH7)=4,TRUNC((AH7-(YEAR(AH7+MOD((8-WEEKDAY(AH7)),7)-3)&\"/1/1\")-3+MOD((WEEKDAY((YEAR(AH7+MOD((8-WEEKDAY(AH7)),7)-3)&\"/1/1\"))+1),7))/7+1),\"\"),\"\")","v":""},null,null,null,{"$f":"DATE(Jahr,AR6,1)","v":"2025-05-01"},{"$f":"WEEKDAY(AR7,2)+2","v":"1904-01-07"},null,null,"Maifeiertag",null,{"$f":"IF(AR7<>\"\",IF(WEEKDAY(AR7)=4,TRUNC((AR7-(YEAR(AR7+MOD((8-WEEKDAY(AR7)),7)-3)&\"/1/1\")-3+MOD((WEEKDAY((YEAR(AR7+MOD((8-WEEKDAY(AR7)),7)-3)&\"/1/1\"))+1),7))/7+1),\"\"),\"\")","v":""},null,null,null,{"$f":"DATE(Jahr,BB6,1)","v":"2025-06-01"},{"$f":"WEEKDAY(BB7,2)+2","v":"1904-01-10"},null,null,{"$f":"IF(BB7=$S$84,\"Himmelfahrt\",IF(BB7=$S$85,\"Pfingstsonntag\",IF(BB7=$S$86,\"Pfingstmontag\",IF(BB7=$S$87,\"Fronleichnam\",\" \"))))","v":" "},null,{"$f":"IF(BB7<>\"\",IF(WEEKDAY(BB7)=4,TRUNC((BB7-(YEAR(BB7+MOD((8-WEEKDAY(BB7)),7)-3)&\"/1/1\")-3+MOD((WEEKDAY((YEAR(BB7+MOD((8-WEEKDAY(BB7)),7)-3)&\"/1/1\"))+1),7))/7+1),\"\"),\"\")","v":""}]
[null,null,null,{"$f":"D7+1","v":"2025-01-02"},"1904-01-07",null,null,null,null,"",null,null,null,{"$f":"N7+1","v":"2025-02-02"},"1904-01-10",null,null,{"$f":"IF(N8=$S$82,\"Ostersonntag\",IF(N8=$S$83,\"Ostermontag\",IF(N8=$S$81,\"Karfreitag\",IF(N8=$S$79,\"Rosenmontag\",IF(N8=$S$80,\"Aschermittwoch\",\" \")))))","v":" "},null,{"$f":"IF(N8<>\"\",IF(WEEKDAY(N8)=4,TRUNC((N8-(YEAR(N8+MOD((8-WEEKDAY(N8)),7)-3)&\"/1/1\")-3+MOD((WEEKDAY((YEAR(N8+MOD((8-WEEKDAY(N8)),7)-3)&\"/1/1\"))+1),7))/7+1),\"\"),\"\")","v":""},null,null,null,{"$f":"X7+1","v":"2025-03-02"},"1904-01-10",null,null," ",null,{"$f":"IF(X8<>\"\",IF(WEEKDAY(X8)=4,TRUNC((X8-(YEAR(X8+MOD((8-WEEKDAY(X8)),7)-3)&\"/1/1\")-3+MOD((WEEKDAY((YEAR(X8+MOD((8-WEEKDAY(X8)),7)-3)&\"/1/1\"))+1),7))/7+1),\"\"),\"\")","v":""},null,null,null,{"$f":"AH7+1","v":"2025-04-02"},"1904-01-06",null,null," ",null,{"$f":"IF(AH8<>\"\",IF(WEEKDAY(AH8)=4,TRUNC((AH8-(YEAR(AH8+MOD((8-WEEKDAY(AH8)),7)-3)&\"/1/1\")-3+MOD((WEEKDAY((YEAR(AH8+MOD((8-WEEKDAY(AH8)),7)-3)&\"/1/1\"))+1),7))/7+1),\"\"),\"\")","v":14},null,null,null,{"$f":"AR7+1","v":"2025-05-02"},"1904-01-08",null,null,{"$f":"IF(AR8=$S$84,\"Himmelfahrt\",IF(AR8=$S$85,\"Pfingstsonntag\",IF(AR8=$S$86,\"Pfingstmontag\",IF(AR8=$S$87,\"Fronleichnam\",\" \"))))","v":" "},null,{"$f":"IF(AR8<>\"\",IF(WEEKDAY(AR8)=4,TRUNC((AR8-(YEAR(AR8+MOD((8-WEEKDAY(AR8)),7)-3)&\"/1/1\")-3+MOD((WEEKDAY((YEAR(AR8+MOD((8-WEEKDAY(AR8)),7)-3)&\"/1/1\"))+1),7))/7+1),\"\"),\"\")","v":""},null,null,null,{"$f":"BB7+1","v":"2025-06-02"},"1904-01-04",null,null," ",null,{"$f":"IF(BB8<>\"\",IF(WEEKDAY(BB8)=4,TRUNC((BB8-(YEAR(BB8+MOD((8-WEEKDAY(BB8)),7)-3)&\"/1/1\")-3+MOD((WEEKDAY((YEAR(BB8+MOD((8-WEEKDAY(BB8)),7)-3)&\"/1/1\"))+1),7))/7+1),\"\"),\"\")","v":""}]
[null,null,null,"2025-01-03","1904-01-08",null,null,null,null,"",null,null,null,"2025-02-03","1904-01-04",null,null," ",null,"",null,null,null,"2025-03-03","1904-01-04",null,null,"Rosenmontag",null,"",null,null,null,"2025-04-03","1904-01-07",null,null," ",null,"",null,null,null,"2025-05-03","1904-01-09",null,null," ",null,"",null,null,null,"2025-06-03","1904-01-05",null,null," ",null,""]
[null,null,null,"2025-01-04","1904-01-09",null,null,null,null,"",null,null,null,"2025-02-04","1904-01-05",null,null," ",null,"",null,null,null,"2025-03-04","1904-01-05",null,null," ",null,"",null,null,null,"2025-04-04","1904-01-08",null,null," ",null,"",null,null,null,"2025-05-04","1904-01-10",null,null," ",null,"",null,null,null,"2025-06-04","1904-01-06",null,null," ",null,23]
[null,null,null,"2025-01-05","1904-01-10",null,null,null,null,"",null,null,null,"2025-02-05","1904-01-06",null,null," ",null,6,null,null,null,"2025-03-05","1904-01-06",null,null,"Aschermittwoch",null,10,null,null,null,"2025-04-05","1904-01-09",null,null," ",null,"",null,null,null,"2025-05-05","1904-01-04",null,null," ",null,"",null,null,null,"2025-06-05","1904-01-07",null,null," ",null,""]
[null,null,null,"2025-01-06","1904-01-04",null,null,"Hl. Drei Könige",null,"",null,null,null,"2025-02-06","1904-01-07",null,null," ",null,"",null,null,null,"2025-03-06","1904-01-07",null,null," ",null,"",null,null,null,"2025-04-06","1904-01-10",null,null," ",null,"",null,null,null,"2025-05-06","1904-01-05",null,null," ",null,"",null,null,null,"2025-06-06","1904-01-08",null,null," ",null,""]
[null,null,null,"2025-01-07","1904-01-05",null,null,null,null,"",null,null,null,"2025-02-07","1904-01-08",null,null," ",null,"",null,null,null,"2025-03-07","1904-01-08",null,null," ",null,"",null,null,null,"2025-04-07","1904-01-04",null,null," ",null,"",null,null,null,"2025-05-07","1904-01-06",null,null," ",null,19,null,null,null,"2025-06-07","1904-01-09",null,null," ",null,""]
[null,null,null,"2025-01-08","1904-01-06",null,null,null,null,2,null,null,null,"2025-02-08","1904-01-09",null,null," ",null,"",null,null,null,"2025-03-08","1904-01-09",null,null," ",null,"",null,null,null,"2025-04-08","1904-01-05",null,null," ",null,"",null,null,null,"2025-05-08","1904-01-07",null,null," ",null,"",null,null,null,"2025-06-08","1904-01-10",null,null,"Pfingstsonntag",null,""]
[null,null,null,"2025-01-09","1904-01-07",null,null,null,null,"",null,null,null,"2025-02-09","1904-01-10",null,null," ",null,"",null,null,null,"2025-03-09","1904-01-10",null,null," ",null,"",null,null,null,"2025-04-09","1904-01-06",null,null," ",null,15,null,null,null,"2025-05-09","1904-01-08",null,null," ",null,"",null,null,null,"2025-06-09","1904-01-04",null,null,"Pfingstmontag",null,""]
[null,null,null,"2025-01-10","1904-01-08",null,null,null,null,"",null,null,null,"2025-02-10","1904-01-04",null,null," ",null,"",null,null,null,"2025-03-10","1904-01-04",null,null," ",null,"",null,null,null,"2025-04-10","1904-01-07",null,null," ",null,"",null,null,null,"2025-05-10","1904-01-09",null,null," ",null,"",null,null,null,"2025-06-10","1904-01-05",null,null," ",null,""]
[null,null,null,"2025-01-11","1904-01-09",null,null,null,null,"",null,null,null,"2025-02-11","1904-01-05",null,null," ",null,"",null,null,null,"2025-03-11","1904-01-05",null,null," ",null,"",null,null,null,"2025-04-11","1904-01-08",null,null," ",null,"",null,null,null,"2025-05-11","1904-01-10",null,null," ",null,"",null,null,null,"2025-06-11","1904-01-06",null,null," ",null,24]
[null,null,null,"2025-01-12","1904-01-10",null,null,null,null,"",null,null,null,"2025-02-12","1904-01-06",null,null," ",null,7,null,null,null,"2025-03-12","1904-01-06",null,null," ",null,11,null,null,null,"2025-04-12","1904-01-09",null,null," ",null,"",null,null,null,"2025-05-12","1904-01-04",null,null," ",null,"",null,null,null,"2025-06-12","1904-01-07",null,null," ",null,""]
[null,null,null,"2025-01-13","1904-01-04",null,null,null,null,"",null,null,null,"2025-02-13","1904-01-07",null,null," ",null,"",null,null,null,"2025-03-13","1904-01-07",null,null," ",null,"",null,null,null,"2025-04-13","1904-01-10",null,null," ",null,"",null,null,null,"2025-05-13","1904-01-05",null,null," ",null,"",null,null,null,"2025-06-13","1904-01-08",null,null," ",null,""]
[null,null,null,"2025-01-14","1904-01-05",null,null,null,null,"",null,null,null,"2025-02-14","1904-01-08",null,null," ",null,"",null,null,null,"2025-03-14","1904-01-08",null,null," ",null,"",null,null,null,"2025-04-14","1904-01-04",null,null," ",null,"",null,null,null,"2025-05-14","1904-01-06",null,null," ",null,20,null,null,null,"2025-06-14","1904-01-09",null,null," ",null,""]
[null,null,null,"2025-01-15","1904-01-06",null,null,null,null,3,null,null,null,"2025-02-15","1904-01-09",null,null," ",null,"",null,null,null,"2025-03-15","1904-01-09",null,null," ",null,"",null,null,null,"2025-04-15","1904-01-05",null,null," ",null,"",null,null,null,"2025-05-15","1904-01-07",null,null," ",null,"",null,null,null,"2025-06-15","1904-01-10",null,null," ",null,""]
[null,null,null,"2025-01-16","1904-01-07",null,null,null,null,"",null,null,null,"2025-02-16","1904-01-10",null,null," ",null,"",null,null,null,"2025-03-16","1904-01-10",null,null," ",null,"",null,null,null,"2025-04-16","1904-01-06",null,null," ",null,16,null,null,null,"2025-05-16","1904-01-08",null,null," ",null,"",null,null,null,"2025-06-16","1904-01-04",null,null," ",null,""]
[null,null,null,"2025-01-17","1904-01-08",null,null,null,null,"",null,null,null,"2025-02-17","1904-01-04",null,null," ",null,"",null,null,null,"2025-03-17","1904-01-04",null,null," ",null,"",null,null,null,"2025-04-17","1904-01-07",null,null," ",null,"",null,null,null,"2025-05-17","1904-01-09",null,null," ",null,"",null,null,null,"2025-06-17","1904-01-05",null,null," ",null,""]
[null,null,null,"2025-01-18","1904-01-09",null,null,null,null,"",null,null,null,"2025-02-18","1904-01-05",null,null," ",null,"",null,null,null,"2025-03-18","1904-01-05",null,null," ",null,"",null,null,null,"2025-04-18","1904-01-08",null,null,"Karfreitag",null,"",null,null,null,"2025-05-18","1904-01-10",null,null," ",null,"",null,null,null,"2025-06-18","1904-01-06",null,null," ",null,25]
[null,null,null,"2025-01-19","1904-01-10",null,null,null,null,"",null,null,null,"2025-02-19","1904-01-06",null,null," ",null,8,null,null,null,"2025-03-19","1904-01-06",null,null," ",null,12,null,null,null,"2025-04-19","1904-01-09",null,null," ",null,"",null,null,null,"2025-05-19","1904-01-04",null,null," ",null,"",null,null,null,"2025-06-19","1904-01-07",null,null,"Fronleichnam",null,""]
[null,null,null,"2025-01-20","1904-01-04",null,null,null,null,"",null,null,null,"2025-02-20","1904-01-07",null,null," ",null,"",null,null,null,"2025-03-20","1904-01-07",null,null," ",null,"",null,null,null,"2025-04-20","1904-01-10",null,null,"Ostersonntag",null,"",null,null,null,"2025-05-20","1904-01-05",null,null," ",null,"",null,null,null,"2025-06-20","1904-01-08",null,null," ",null,""]
[null,null,null,"2025-01-21","1904-01-05",null,null,null,null,"",null,null,null,"2025-02-21","1904-01-08",null,null," ",null,"",null,null,null,"2025-03-21","1904-01-08",null,null," ",null,"",null,null,null,"2025-04-21","1904-01-04",null,null,"Ostermontag",null,"",null,null,null,"2025-05-21","1904-01-06",null,null," ",null,21,null,null,null,"2025-06-21","1904-01-09",null,null," ",null,""]
[null,null,null,"2025-01-22","1904-01-06",null,null,null,null,4,null,null,null,"2025-02-22","1904-01-09",null,null," ",null,"",null,null,null,"2025-03-22","1904-01-09",null,null," ",null,"",null,null,null,"2025-04-22","1904-01-05",null,null," ",null,"",null,null,null,"2025-05-22","1904-01-07",null,null," ",null,"",null,null,null,"2025-06-22","1904-01-10",null,null," ",null,""]
[null,null,null,"2025-01-23","1904-01-07",null,null,null,null,"",null,null,null,"2025-02-23","1904-01-10",null,null," ",null,"",null,null,null,"2025-03-23","1904-01-10",null,null," ",null,"",null,null,null,"2025-04-23","1904-01-06",null,null," ",null,17,null,null,null,"2025-05-23","1904-01-08",null,null," ",null,"",null,null,null,"2025-06-23","1904-01-04",null,null," ",null,""]
[null,null,null,"2025-01-24","1904-01-08",null,null,null,null,"",null,null,null,"2025-02-24","1904-01-04",null,null," ",null,"",null,null,null,"2025-03-24","1904-01-04",null,null," ",null,"",null,null,null,"2025-04-24","1904-01-07",null,null," ",null,"",null,null,null,"2025-05-24","1904-01-09",null,null," ",null,"",null,null,null,"2025-06-24","1904-01-05",null,null," ",null,""]
[null,null,null,"2025-01-25","1904-01-09",null,null,null,null,"",null,null,null,"2025-02-25","1904-01-05",null,null," ",null,"",null,null,null,"2025-03-25","1904-01-05",null,null," ",null,"",null,null,null,"2025-04-25","1904-01-08",null,null," ",null,"",null,null,null,"2025-05-25","1904-01-10",null,null," ",null,"",null,null,null,"2025-06-25","1904-01-06",null,null," ",null,26]
[null,null,null,"2025-01-26","1904-01-10",null,null,null,null,"",null,null,null,"2025-02-26","1904-01-06",null,null," ",null,9,null,null,null,"2025-03-26","1904-01-06",null,null," ",null,13,null,null,null,"2025-04-26","1904-01-09",null,null," ",null,"",null,null,null,"2025-05-26","1904-01-04",null,null," ",null,"",null,null,null,"2025-06-26","1904-01-07",null,null," ",null,""]
[null,null,null,"2025-01-27","1904-01-04",null,null,null,null,"",null,null,null,"2025-02-27","1904-01-07",null,null," ",null,"",null,null,null,"2025-03-27","1904-01-07",null,null," ",null,"",null,null,null,"2025-04-27","1904-01-10",null,null," ",null,"",null,null,null,"2025-05-27","1904-01-05",null,null," ",null,"",null,null,null,"2025-06-27","1904-01-08",null,null," ",null,""]
[null,null,null,"2025-01-28","1904-01-05",null,null,null,null,"",null,null,null,"2025-02-28","1904-01-08",null,null," ",null,"",null,null,null,"2025-03-28","1904-01-08",null,null," ",null,"",null,null,null,"2025-04-28","1904-01-04",null,null," ",null,"",null,null,null,"2025-05-28","1904-01-06",null,null," ",null,22,null,null,null,"2025-06-28","1904-01-09",null,null," ",null,""]
[null,null,null,"2025-01-29","1904-01-06",null,null,null,null,5,null,null,null,{"$f":"IF(N34+1=X7,\"\",N34+1)","v":""},{"$error":"#VALUE!"},null,null," ",null,"",null,null,null,"2025-03-29","1904-01-09",null,null," ",null,"",null,null,null,"2025-04-29","1904-01-05",null,null," ",null,"",null,null,null,"2025-05-29","1904-01-07",null,null,"Himmelfahrt",null,"",null,null,null,"2025-06-29","1904-01-10",null,null," ",null,""]
[null,null,null,"2025-01-30","1904-01-07",null,null,null,null,"",null,null,null,null,null,null,null,null,null,{"$f":"IF(O36=\"Mi\",T29+1,\" \")","v":" "},null,null,null,"2025-03-30","1904-01-10",null,null," ",null,"",null,null,null,"2025-04-30","1904-01-06",null,null," ",null,18,null,null,null,"2025-05-30","1904-01-08",null,null," ",null,"",null,null,null,"2025-06-30","1904-01-04",null,null," ",null,""]
[null,null,null,"2025-01-31","1904-01-08",null,null,null,null,"",null,null,null,null,null,null,null,null,null,{"$f":"IF(O37=\"Mi\",T30+1,\" \")","v":" "},null,null,null,"2025-03-31","1904-01-04",null,null," ",null,"",null,null,null,null,null,null,null,null,null,{"$f":"IF(AI37=\"Mi\",AN30+1,\" \")","v":" "},null,null,null,"2025-05-31","1904-01-09",null,null," ",null,"",null,null,null,null,null,null,null,null,null,{"$f":"IF(BC37=\"Mi\",BH30+1,\" \")","v":" "}]
[null,null,null,7,null,null,null,null,"Juli",null,null,null,null,8,null,null,null,null,"August",null,null,null,null,9,null,null,null,null,"September",null,null,null,null,10,null,null,null,null,"Oktober",null,null,null,null,11,null,null,null,null,"November",null,null,null,null,12,null,null,null,null,"Dezember"]
[null,null,null,{"$f":"DATE(Jahr,D38,1)","v":"2025-07-01"},{"$f":"WEEKDAY(D39,2)+2","v":"1904-01-05"},null,null,null,null,{"$f":"IF(D39<>\"\",IF(WEEKDAY(D39)=4,TRUNC((D39-(YEAR(D39+MOD((8-WEEKDAY(D39)),7)-3)&\"/1/1\")-3+MOD((WEEKDAY((YEAR(D39+MOD((8-WEEKDAY(D39)),7)-3)&\"/1/1\"))+1),7))/7+1),\"\"),\"\")","v":""},null,null,null,{"$f":"DATE(Jahr,N38,1)","v":"2025-08-01"},{"$f":"WEEKDAY(N39,2)+2","v":"1904-01-08"},null,null,null,null,{"$f":"IF(N39<>\"\",IF(WEEKDAY(N39)=4,TRUNC((N39-(YEAR(N39+MOD((8-WEEKDAY(N39)),7)-3)&\"/1/1\")-3+MOD((WEEKDAY((YEAR(N39+MOD((8-WEEKDAY(N39)),7)-3)&\"/1/1\"))+1),7))/7+1),\"\"),\"\")","v":""},null,null,null,{"$f":"DATE(Jahr,X38,1)","v":"2025-09-01"},{"$f":"WEEKDAY(X39,2)+2","v":"1904-01-04"},null,null,null,null,{"$f":"IF(X39<>\"\",IF(WEEKDAY(X39)=4,TRUNC((X39-(YEAR(X39+MOD((8-WEEKDAY(X39)),7)-3)&\"/1/1\")-3+MOD((WEEKDAY((YEAR(X39+MOD((8-WEEKDAY(X39)),7)-3)&\"/1/1\"))+1),7))/7+1),\"\"),\"\")","v":""},null,null,null,{"$f":"DATE(Jahr,AH38,1)","v":"2025-10-01"},{"$f":"WEEKDAY(AH39,2)+2","v":"1904-01-06"},null,null,null,null,{"$f":"IF(AH39<>\"\",IF(WEEKDAY(AH39)=4,TRUNC((AH39-(YEAR(AH39+MOD((8-WEEKDAY(AH39)),7)-3)&\"/1/1\")-3+MOD((WEEKDAY((YEAR(AH39+MOD((8-WEEKDAY(AH39)),7)-3)&\"/1/1\"))+1),7))/7+1),\"\"),\"\")","v":40},null,null,null,{"$f":"DATE(Jahr,AR38,1)","v":"2025-11-01"},{"$f":"WEEKDAY(AR39,2)+2","v":"1904-01-09"},null,null,"Allerheiligen",null,{"$f":"IF(AR39<>\"\",IF(WEEKDAY(AR39)=4,TRUNC((AR39-(YEAR(AR39+MOD((8-WEEKDAY(AR39)),7)-3)&\"/1/1\")-3+MOD((WEEKDAY((YEAR(AR39+MOD((8-WEEKDAY(AR39)),7)-3)&\"/1/1\"))+1),7))/7+1),\"\"),\"\")","v":""},null,null,null,{"$f":"DATE(Jahr,BB38,1)","v":"2025-12-01"},{"$f":"WEEKDAY(BB39,2)+2","v":"1904-01-04"},null,null,null,null,{"$f":"IF(BB39<>\"\",IF(WEEKDAY(BB39)=4,TRUNC((BB39-(YEAR(BB39+MOD((8-WEEKDAY(BB39)),7)-3)&\"/1/1\")-3+MOD((WEEKDAY((YEAR(BB39+MOD((8-WEEKDAY(BB39)),7)-3)&\"/1/1\"))+1),7))/7+1),\"\"),\"\")","v":""}]
[null,null,null,{"$f":"D39+1","v":"2025-07-02"},"1904-01-06",null,null,null,null,{"$f":"IF(D40<>\"\",IF(WEEKDAY(D40)=4,TRUNC((D40-(YEAR(D40+MOD((8-WEEKDAY(D40)),7)-3)&\"/1/1\")-3+MOD((WEEKDAY((YEAR(D40+MOD((8-WEEKDAY(D40)),7)-3)&\"/1/1\"))+1),7))/7+1),\"\"),\"\")","v":27},null,null,null,{"$f":"N39+1","v":"2025-08-02"},"1904-01-09",null,null,null,null,{"$f":"IF(N40<>\"\",IF(WEEKDAY(N40)=4,TRUNC((N40-(YEAR(N40+MOD((8-WEEKDAY(N40)),7)-3)&\"/1/1\")-3+MOD((WEEKDAY((YEAR(N40+MOD((8-WEEKDAY(N40)),7)-3)&\"/1/1\"))+1),7))/7+1),\"\"),\"\")","v":""},null,null,null,{"$f":"X39+1","v":"2025-09-02"},"1904-01-05",null,null,null,null,{"$f":"IF(X40<>\"\",IF(WEEKDAY(X40)=4,TRUNC((X40-(YEAR(X40+MOD((8-WEEKDAY(X40)),7)-3)&\"/1/1\")-3+MOD((WEEKDAY((YEAR(X40+MOD((8-WEEKDAY(X40)),7)-3)&\"/1/1\"))+1),7))/7+1),\"\"),\"\")","v":""},null,null,null,{"$f":"AH39+1","v":"2025-10-02"},"1904-01-07",null,null,null,null,{"$f":"IF(AH40<>\"\",IF(WEEKDAY(AH40)=4,TRUNC((AH40-(YEAR(AH40+MOD((8-WEEKDAY(AH40)),7)-3)&\"/1/1\")-3+MOD((WEEKDAY((YEAR(AH40+MOD((8-WEEKDAY(AH40)),7)-3)&\"/1/1\"))+1),7))/7+1),\"\"),\"\")","v":""},null,null,null,{"$f":"AR39+1","v":"2025-11-02"},"1904-01-10",null,null,null,null,{"$f":"IF(AR40<>\"\",IF(WEEKDAY(AR40)=4,TRUNC((AR40-(YEAR(AR40+MOD((8-WEEKDAY(AR40)),7)-3)&\"/1/1\")-3+MOD((WEEKDAY((YEAR(AR40+MOD((8-WEEKDAY(AR40)),7)-3)&\"/1/1\"))+1),7))/7+1),\"\"),\"\")","v":""},null,null,null,{"$f":"BB39+1","v":"2025-12-02"},"1904-01-05",null,null,null,null,{"$f":"IF(BB40<>\"\",IF(WEEKDAY(BB40)=4,TRUNC((BB40-(YEAR(BB40+MOD((8-WEEKDAY(BB40)),7)-3)&\"/1/1\")-3+MOD((WEEKDAY((YEAR(BB40+MOD((8-WEEKDAY(BB40)),7)-3)&\"/1/1\"))+1),7))/7+1),\"\"),\"\")","v":""}]
[null,null,null,"2025-07-03","1904-01-07",null,null,null,null,"",null,null,null,"2025-08-03","1904-01-10",null,null,null,null,"",null,null,null,"2025-09-03","1904-01-06",null,null,null,null,36,null,null,null,"2025-10-03","1904-01-08",null,null,"Tag d. Dt.Einheit",null,"",null,null,null,"2025-11-03","1904-01-04",null,null,null,null,"",null,null,null,"2025-12-03","1904-01-06",null,null,null,null,49]
[null,null,null,"2025-07-04","1904-01-08",null,null,null,null,"",null,null,null,"2025-08-04","1904-01-04",null,null,null,null,"",null,null,null,"2025-09-04","1904-01-07",null,null,null,null,"",null,null,null,"2025-10-04","1904-01-09",null,null,null,null,"",null,null,null,"2025-11-04","1904-01-05",null,null,null,null,"",null,null,null,"2025-12-04","1904-01-07",null,null,null,null,""]
[null,null,null,"2025-07-05","1904-01-09",null,null,null,null,"",null,null,null,"2025-08-05","1904-01-05",null,null,null,null,"",null,null,null,"2025-09-05","1904-01-08",null,null,null,null,"",null,null,null,"2025-10-05","1904-01-10",null,null,null,null,"",null,null,null,"2025-11-05","1904-01-06",null,null,null,null,45,null,null,null,"2025-12-05","1904-01-08",null,null,null,null,""]
[null,null,null,"2025-07-06","1904-01-10",null,null,null,null,"",null,null,null,"2025-08-06","1904-01-06",null,null,null,null,32,null,null,null,"2025-09-06","1904-01-09",null,null,null,null,"",null,null,null,"2025-10-06","1904-01-04",null,null,null,null,"",null,null,null,"2025-11-06","1904-01-07",null,null,null,null,"",null,null,null,"2025-12-06","1904-01-09",null,null,"Nikolaus",null,""]
[null,null,null,"2025-07-07","1904-01-04",null,null,null,null,"",null,null,null,"2025-08-07","1904-01-07",null,null,null,null,"",null,null,null,"2025-09-07","1904-01-10",null,null,null,null,"",null,null,null,"2025-10-07","1904-01-05",null,null,null,null,"",null,null,null,"2025-11-07","1904-01-08",null,null,null,null,"",null,null,null,"2025-12-07","1904-01-10",null,null,null,null,""]
[null,null,null,"2025-07-08","1904-01-05",null,null,null,null,"",null,null,null,"2025-08-08","1904-01-08",null,null,null,null,"",null,null,null,"2025-09-08","1904-01-04",null,null,null,null,"",null,null,null,"2025-10-08","1904-01-06",null,null,null,null,41,null,null,null,"2025-11-08","1904-01-09",null,null,null,null,"",null,null,null,"2025-12-08","1904-01-04",null,null,null,null,""]
[null,null,null,"2025-07-09","1904-01-06",null,null,null,null,28,null,null,null,"2025-08-09","1904-01-09",null,null,null,null,"",null,null,null,"2025-09-09","1904-01-05",null,null,null,null,"",null,null,null,"2025-10-09","1904-01-07",null,null,null,null,"",null,null,null,"2025-11-09","1904-01-10",null,null,null,null,"",null,null,null,"2025-12-09","1904-01-05",null,null,null,null,""]
[null,null,null,"2025-07-10","1904-01-07",null,null,null,null,"",null,null,null,"2025-08-10","1904-01-10",null,null,null,null,"",null,null,null,"2025-09-10","1904-01-06",null,null,null,null,37,null,null,null,"2025-10-10","1904-01-08",null,null,null,null,"",null,null,null,"2025-11-10","1904-01-04",null,null,null,null,"",null,null,null,"2025-12-10","1904-01-06",null,null,null,null,50]
[null,null,null,"2025-07-11","1904-01-08",null,null,null,null,"",null,null,null,"2025-08-11","1904-01-04",null,null,null,null,"",null,null,null,"2025-09-11","1904-01-07",null,null,null,null,"",null,null,null,"2025-10-11","1904-01-09",null,null,null,null,"",null,null,null,"2025-11-11","1904-01-05",null,null,null,null,"",null,null,null,"2025-12-11","1904-01-07",null,null,null,null,""]
[null,null,null,"2025-07-12","1904-01-09",null,null,null,null,"",null,null,null,"2025-08-12","1904-01-05",null,null,null,null,"",null,null,null,"2025-09-12","1904-01-08",null,null,null,null,"",null,null,null,"2025-10-12","1904-01-10",null,null,null,null,"",null,null,null,"2025-11-12","1904-01-06",null,null,null,null,46,null,null,null,"2025-12-12","1904-01-08",null,null,null,null,""]
[null,null,null,"2025-07-13","1904-01-10",null,null,null,null,"",null,null,null,"2025-08-13","1904-01-06",null,null,null,null,33,null,null,null,"2025-09-13","1904-01-09",null,null,null,null,"",null,null,null,"2025-10-13","1904-01-04",null,null,null,null,"",null,null,null,"2025-11-13","1904-01-07",null,null,null,null,"",null,null,null,"2025-12-13","1904-01-09",null,null,null,null,""]
[null,null,null,"2025-07-14","1904-01-04",null,null,null,null,"",null,null,null,"2025-08-14","1904-01-07",null,null,null,null,"",null,null,null,"2025-09-14","1904-01-10",null,null,null,null,"",null,null,null,"2025-10-14","1904-01-05",null,null,null,null,"",null,null,null,"2025-11-14","1904-01-08",null,null,null,null,"",null,null,null,"2025-12-14","1904-01-10",null,null,null,null,""]
[null,null,null,"2025-07-15","1904-01-05",null,null,null,null,"",null,null,null,"2025-08-15","1904-01-08",null,null,"Mariä Himmelfahrt",null,"",null,null,null,"2025-09-15","1904-01-04",null,null,null,null,"",null,null,null,"2025-10-15","1904-01-06",null,null,null,null,42,null,null,null,"2025-11-15","1904-01-09",null,null,{"$f":"IF(AS53=\"Mi\",\"Buß- und Bettag\",\"\")","v":""},null,"",null,null,null,"2025-12-15","1904-01-04",null,null,null,null,""]
[null,null,null,"2025-07-16","1904-01-06",null,null,null,null,29,null,null,null,"2025-08-16","1904-01-09",null,null,null,null,"",null,null,null,"2025-09-16","1904-01-05",null,null,null,null,"",null,null,null,"2025-10-16","1904-01-07",null,null,null,null,"",null,null,null,"2025-11-16","1904-01-10",null,null,"",null,"",null,null,null,"2025-12-16","1904-01-05",null,null,null,null,""]
[null,null,null,"2025-07-17","1904-01-07",null,null,null,null,"",null,null,null,"2025-08-17","1904-01-10",null,null,null,null,"",null,null,null,"2025-09-17","1904-01-06",null,null,null,null,38,null,null,null,"2025-10-17","1904-01-08",null,null,null,null,"",null,null,null,"2025-11-17","1904-01-04",null,null,"",null,"",null,null,null,"2025-12-17","1904-01-06",null,null,null,null,51]
[null,null,null,"2025-07-18","1904-01-08",null,null,null,null,"",null,null,null,"2025-08-18","1904-01-04",null,null,null,null,"",null,null,null,"2025-09-18","1904-01-07",null,null,null,null,"",null,null,null,"2025-10-18","1904-01-09",null,null,null,null,"",null,null,null,"2025-11-18","1904-01-05",null,null,"",null,"",null,null,null,"2025-12-18","1904-01-07",null,null,null,null,""]
[null,null,null,"2025-07-19","1904-01-09",null,null,null,null,"",null,null,null,"2025-08-19","1904-01-05",null,null,null,null,"",null,null,null,"2025-09-19","1904-01-08",null,null,null,null,"",null,null,null,"2025-10-19","1904-01-10",null,null,null,null,"",null,null,null,"2025-11-19","1904-01-06",null,null,"",null,47,null,null,null,"2025-12-19","1904-01-08",null,null,null,null,""]
[null,null,null,"2025-07-20","1904-01-10",null,null,null,null,"",null,null,null,"2025-08-20","1904-01-06",null,null,null,null,34,null,null,null,"2025-09-20","1904-01-09",null,null,null,null,"",null,null,null,"2025-10-20","1904-01-04",null,null,null,null,"",null,null,null,"2025-11-20","1904-01-07",null,null,"",null,"",null,null,null,"2025-12-20","1904-01-09",null,null,null,null,""]
[null,null,null,"2025-07-21","1904-01-04",null,null,null,null,"",null,null,null,"2025-08-21","1904-01-07",null,null,null,null,"",null,null,null,"2025-09-21","1904-01-10",null,null,null,null,"",null,null,null,"2025-10-21","1904-01-05",null,null,null,null,"",null,null,null,"2025-11-21","1904-01-08",null,null,"",null,"",null,null,null,"2025-12-21","1904-01-10",null,null,null,null,""]
[null,null,null,"2025-07-22","1904-01-05",null,null,null,null,"",null,null,null,"2025-08-22","1904-01-08",null,null,null,null,"",null,null,null,"2025-09-22","1904-01-04",null,null,null,null,"",null,null,null,"2025-10-22","1904-01-06",null,null,null,null,43,null,null,null,"2025-11-22","1904-01-09",null,null,null,null,"",null,null,null,"2025-12-22","1904-01-04",null,null,null,null,""]
[null,null,null,"2025-07-23","1904-01-06",null,null,null,null,30,null,null,null,"2025-08-23","1904-01-09",null,null,null,null,"",null,null,null,"2025-09-23","1904-01-05",null,null,null,null,"",null,null,null,"2025-10-23","1904-01-07",null,null,null,null,"",null,null,null,"2025-11-23","1904-01-10",null,null,null,null,"",null,null,null,"2025-12-23","1904-01-05",null,null,null,null,""]
[null,null,null,"2025-07-24","1904-01-07",null,null,null,null,"",null,null,null,"2025-08-24","1904-01-10",null,null,null,null,"",null,null,null,"2025-09-24","1904-01-06",null,null,null,null,39,null,null,null,"2025-10-24","1904-01-08",null,null,null,null,"",null,null,null,"2025-11-24","1904-01-04",null,null,null,null,"",null,null,null,"2025-12-24","1904-01-06",null,null,"Heiligabend",null,52]
[null,null,null,"2025-07-25","1904-01-08",null,null,null,null,"",null,null,null,"2025-08-25","1904-01-04",null,null,null,null,"",null,null,null,"2025-09-25","1904-01-07",null,null,null,null,"",null,null,null,"2025-10-25","1904-01-09",null,null,null,null,"",null,null,null,"2025-11-25","1904-01-05",null,null,null,null,"",null,null,null,"2025-12-25","1904-01-07",null,null,"1.Weihnachtstag",null,""]
[null,null,null,"2025-07-26","1904-01-09",null,null,null,null,"",null,null,null,"2025-08-26","1904-01-05",null,null,null,null,"",null,null,null,"2025-09-26","1904-01-08",null,null,null,null,"",null,null,null,"2025-10-26","1904-01-10",null,null,null,null,"",null,null,null,"2025-11-26","1904-01-06",null,null,null,null,48,null,null,null,"2025-12-26","1904-01-08",null,null,"2.Weihnachtstag",null,""]
[null,null,null,"2025-07-27","1904-01-10",null,null,null,null,"",null,null,null,"2025-08-27","1904-01-06",null,null,null,null,35,null,null,null,"2025-09-27","1904-01-09",null,null,null,null,"",null,null,null,"2025-10-27","1904-01-04",null,null,null,null,"",null,null,null,"2025-11-27","1904-01-07",null,null,null,null,"",null,null,null,"2025-12-27","1904-01-09",null,null,null,null,""]
[null,null,null,"2025-07-28","1904-01-04",null,null,null,null,"",null,null,null,"2025-08-28","1904-01-07",null,null,null,null,"",null,null,null,"2025-09-28","1904-01-10",null,null,null,null,"",null,null,null,"2025-10-28","1904-01-05",null,null,null,null,"",null,null,null,"2025-11-28","1904-01-08",null,null,null,null,"",null,null,null,"2025-12-28","1904-01-10",null,null,null,null,""]
[null,null,null,"2025-07-29","1904-01-05",null,null,null,null,"",null,null,null,"2025-08-29","1904-01-08",null,null,null,null,"",null,null,null,"2025-09-29","1904-01-04",null,null,null,null,"",null,null,null,"2025-10-29","1904-01-06",null,null,null,null,44,null,null,null,"2025-11-29","1904-01-09",null,null,null,null,"",null,null,null,"2025-12-29","1904-01-04",null,null,null,null,""]
[null,null,null,"2025-07-30","1904-01-06",null,null,null,null,31,null,null,null,"2025-08-30","1904-01-09",null,null,null,null,"",null,null,null,"2025-09-30","1904-01-05",null,null,null,null,"",null,null,null,"2025-10-30","1904-01-07",null,null,null,null,"",null,null,null,"2025-11-30","1904-01-10",null,null,null,null,"",null,null,null,"2025-12-30","1904-01-05",null,null,null,null,""]
[null,null,null,"2025-07-31","1904-01-07",null,null,null,null,"",null,null,null,"2025-08-31","1904-01-10",null,null,null,null,"",null,null,null,null,null,null,null,null,null,{"$f":"IF(Y69=\"Mi\",AD62+1,\" \")","v":" "},null,null,null,"2025-10-31","1904-01-08",null,null,"Reformationstag",null,"",null,null,null,null,null,null,null,null,null,{"$f":"IF(AS69=\"Mi\",AX62+1,\" \")","v":" "},null,null,null,"2025-12-31","1904-01-06",null,null,"Silvester",null,1]
[]
[]
[null,null,null,null,null,null,null,null,null,null,null,null,null,null,null,null,null,null,null,null,null,null,null,"e-Mail:","Speermuell@GMX.de"]
[null,null,null,null,null,null,null,null,null,null,null,null,null,null,null,null,null,null,null,null,null,null,null," Download:"]
[]
[]
[]
[]
[null,null,null,null,null,null,null,null,null,null,null,null,null,null,null,null,null,null,null,null,null,null,null,null,null,null,null,null,"Ferien"]
[null,null,null,null,null,null,null,null,"Rosenmontag",null,null,null,null,null,null,null,null,null,{"$f":"Ostern+T79","v":"2025-03-03"},-48,null,null,null,null,null,null,null,null,"2022-01-01"]
[null,null,null,null,null,null,null,null,"Aschermittwoch",null,null,null,null,null,null,null,null,null,{"$f":"Ostern+T80","v":"2025-03-05"},-46,null,null,null,null,null,null,null,null,"2022-01-02"]
[null,null,null,null,null,null,null,null,"Karfreitag",null,null,null,null,null,null,null,null,null,{"$f":"Ostern+T81","v":"2025-04-18"},-2,null,null,null,null,null,null,null,null,"2022-01-03"]
[null,null,null,null,null,null,null,null,"Ostersonntag",null,null,null,null,null,null,null,null,null,{"$f":"DATE(AC4,3,1)+MOD((255-11*MOD(AC4,19)-21),30)+21+(MOD((255-11*MOD(AC4,19)-21),30) + 21>48)+6-MOD(AC4+INT(AC4/4)+MOD((255- 11*MOD(AC4,19)- 21),30)+21+(MOD((255-11*MOD(AC4,19)-21),30)+21>48)+1,7)","v":"2025-04-20"},null,null,null,null,null,null,null,null,null,"2022-01-04"]
[null,null,null,null,null,null,null,null,"Ostermontag",null,null,null,null,null,null,null,null,null,{"$f":"Ostern+T83","v":"2025-04-21"},1,null,null,null,null,null,null,null,null,"2022-01-05"]
[null,null,null,null,null,null,null,null,"Himmelfahrt",null,null,null,null,null,null,null,null,null,{"$f":"Ostern+T84","v":"2025-05-29"},39,null,null,null,null,null,null,null,null,"2022-01-06"]
[null,null,null,null,null,null,null,null,"Pfingstsonntag",null,null,null,null,null,null,null,null,null,{"$f":"Ostern+T85","v":"2025-06-08"},49,null,null,null,null,null,null,null,null,"2022-01-07"]
[null,null,null,null,null,null,null,null,"Pfingstmontag",null,null,null,null,null,null,null,null,null,{"$f":"Ostern+T86","v":"2025-06-09"},50]
[null,null,null,null,null,null,null,null,"Fronleichnam",null,null,null,null,null,null,null,null,null,{"$f":"Ostern+T87","v":"2025-06-19"},60,null,null,null,null,null,null,null,null,"2022-01-31"]
[null,null,null,null,null,null,null,null,null,null,null,null,null,null,null,null,null,null,"Feiertage",null,null,null,null,null,null,null,null,null,"2022-02-01"]
[null,null,null,null,null,null,null,null,{"$f":"I81","v":"Karfreitag"},null,null,null,null,null,null,null,null,null,{"$f":"S81","v":"2025-04-18"}]
[null,null,null,null,null,null,null,null,"Ostersonntag",null,null,null,null,null,null,null,null,null,"2025-04-20",null,null,null,null,null,null,null,null,null,"2022-04-04"]
[null,null,null,null,null,null,null,null,"Ostermontag",null,null,null,null,null,null,null,null,null,"2025-04-21",null,null,null,null,null,null,null,null,null,"2022-04-05"]
[null,null,null,null,null,null,null,null,"Himmelfahrt",null,null,null,null,null,null,null,null,null,"2025-05-29",null,null,null,null,null,null,null,null,null,"2022-04-06"]
[null,null,null,null,null,null,null,null,"Pfingstsonntag",null,null,null,null,null,null,null,null,null,"2025-06-08",null,null,null,null,null,null,null,null,null,"2022-04-07"]
[null,null,null,null,null,null,null,null,"Pfingstmontag",null,null,null,null,null,null,null,null,null,"2025-06-09",null,null,null,null,null,null,null,null,null,"2022-04-08"]
[null,null,null,null,null,null,null,null,"Tag der D.Einheit",null,null,null,null,null,null,null,null,null,{"$f":"DATE(Jahr,10,3)","v":"2025-10-03"},null,null,null,null,null,null,null,null,null,"2022-04-09"]
[null,null,null,null,null,null,null,null,"Reformationstag",null,null,null,null,null,null,null,null,null,{"$f":"DATE(Jahr,10,31)","v":"2025-10-31"},null,null,null,null,null,null,null,null,null,"2022-04-10"]
[null,null,null,null,null,null,null,null,"Heiligabend",null,null,null,null,null,null,null,null,null,{"$f":"DATE(Jahr,12,24)","v":"2025-12-24"},null,null,null,null,null,null,null,null,null,"2022-04-11"]
[null,null,null,null,null,null,null,null,"1.Weihnachten",null,null,null,null,null,null,null,null,null,{"$f":"DATE(Jahr,12,25)","v":"2025-12-25"},null,null,null,null,null,null,null,null,null,"2022-04-12"]
[null,null,null,null,null,null,null,null,"2.Weihnachten",null,null,null,null,null,null,null,null,null,{"$f":"DATE(Jahr,12,26)","v":"2025-12-26"},null,null,null,null,null,null,null,null,null,"2022-04-13"]
[null,null,null,null,null,null,null,null,"Silvester",null,null,null,null,null,null,null,null,null,{"$f":"DATE(Jahr,12,31)","v":"2025-12-31"},null,null,null,null,null,null,null,null,null,"2022-04-14"]
[null,null,null,null,null,null,null,null,"Neujahr",null,null,null,null,null,null,null,null,null,{"$f":"DATE(Jahr,1,1)","v":"2025-01-01"},null,null,null,null,null,null,null,null,null,"2022-04-15"]
[null,null,null,null,null,null,null,null,null,null,null,null,null,null,null,null,null,null,null,null,null,null,null,null,null,null,null,null,"2022-04-16"]
[null,null,null,null,null,null,null,null,null,null,null,null,null,null,null,null,null,null,null,null,null,null,null,null,null,null,null,null,"2022-04-17"]
[null,null,null,null,null,null,null,null,null,null,null,null,null,null,null,null,null,null,null,null,null,null,null,null,null,null,null,null,"2022-04-18"]
[null,null,null,null,null,null,null,null,null,null,null,null,null,null,null,null,null,null,null,null,null,null,null,null,null,null,null,null,"2022-04-19"]
[]
[null,null,null,null,null,null,null,null,null,null,null,null,null,null,null,null,null,null,null,null,null,null,null,null,null,null,null,null,"2022-05-27"]
[null,null,null,null,null,null,null,null,null,null,null,null,null,null,null,null,null,null,null,null,null,null,null,null,null,null,null,null,"2022-06-07"]
[]
[null,null,null,null,null,null,null,null,null,null,null,null,null,null,null,null,null,null,null,null,null,null,null,null,null,null,null,null,"2022-07-14"]
[null,null,null,null,null,null,null,null,null,null,null,null,null,null,null,null,null,null,null,null,null,null,null,null,null,null,null,null,"2022-07-15"]
[null,null,null,null,null,null,null,null,null,null,null,null,null,null,null,null,null,null,null,null,null,null,null,null,null,null,null,null,"2022-07-16"]
[null,null,null,null,null,null,null,null,null,null,null,null,null,null,null,null,null,null,null,null,null,null,null,null,null,null,null,null,"2022-07-17"]
[null,null,null,null,null,null,null,null,null,null,null,null,null,null,null,null,null,null,null,null,null,null,null,null,null,null,null,null,"2022-07-18"]
[null,null,null,null,null,null,null,null,null,null,null,null,null,null,null,null,null,null,null,null,null,null,null,null,null,null,null,null,"2022-07-19"]
[null,null,null,null,null,null,null,null,null,null,null,null,null,null,null,null,null,null,null,null,null,null,null,null,null,null,null,null,"2022-07-20"]
[null,null,null,null,null,null,null,null,null,null,null,null,null,null,null,null,null,null,null,null,null,null,null,null,null,null,null,null,"2022-07-21"]
[null,null,null,null,null,null,null,null,null,null,null,null,null,null,null,null,null,null,null,null,null,null,null,null,null,null,null,null,"2022-07-22"]
[null,null,null,null,null,null,null,null,null,null,null,null,null,null,null,null,null,null,null,null,null,null,null,null,null,null,null,null,"2022-07-23"]
[null,null,null,null,null,null,null,null,null,null,null,null,null,null,null,null,null,null,null,null,null,null,null,null,null,null,null,null,"2022-07-24"]
[null,null,null,null,null,null,null,null,null,null,null,null,null,null,null,null,null,null,null,null,null,null,null,null,null,null,null,null,"2022-07-25"]
[null,null,null,null,null,null,null,null,null,null,null,null,null,null,null,null,null,null,null,null,null,null,null,null,null,null,null,null,"2022-07-26"]
[null,null,null,null,null,null,null,null,null,null,null,null,null,null,null,null,null,null,null,null,null,null,null,null,null,null,null,null,"2022-07-27"]
[null,null,null,null,null,null,null,null,null,null,null,null,null,null,null,null,null,null,null,null,null,null,null,null,null,null,null,null,"2022-07-28"]
[null,null,null,null,null,null,null,null,null,null,null,null,null,null,null,null,null,null,null,null,null,null,null,null,null,null,null,null,"2022-07-29"]
[null,null,null,null,null,null,null,null,null,null,null,null,null,null,null,null,null,null,null,null,null,null,null,null,null,null,null,null,"2022-07-30"]
[null,null,null,null,null,null,null,null,null,null,null,null,null,null,null,null,null,null,null,null,null,null,null,null,null,null,null,null,"2022-07-31"]
[null,null,null,null,null,null,null,null,null,null,null,null,null,null,null,null,null,null,null,null,null,null,null,null,null,null,null,null,"2022-08-01"]
[null,null,null,null,null,null,null,null,null,null,null,null,null,null,null,null,null,null,null,null,null,null,null,null,null,null,null,null,"2022-08-02"]
[null,null,null,null,null,null,null,null,null,null,null,null,null,null,null,null,null,null,null,null,null,null,null,null,null,null,null,null,"2022-08-03"]
[null,null,null,null,null,null,null,null,null,null,null,null,null,null,null,null,null,null,null,null,null,null,null,null,null,null,null,null,"2022-08-04"]
[null,null,null,null,null,null,null,null,null,null,null,null,null,null,null,null,null,null,null,null,null,null,null,null,null,null,null,null,"2022-08-05"]
[null,null,null,null,null,null,null,null,null,null,null,null,null,null,null,null,null,null,null,null,null,null,null,null,null,null,null,null,"2022-08-06"]
[null,null,null,null,null,null,null,null,null,null,null,null,null,null,null,null,null,null,null,null,null,null,null,null,null,null,null,null,"2022-08-07"]
[null,null,null,null,null,null,null,null,null,null,null,null,null,null,null,null,null,null,null,null,null,null,null,null,null,null,null,null,"2022-08-08"]
[null,null,null,null,null,null,null,null,null,null,null,null,null,null,null,null,null,null,null,null,null,null,null,null,null,null,null,null,"2022-08-09"]
[null,null,null,null,null,null,null,null,null,null,null,null,null,null,null,null,null,null,null,null,null,null,null,null,null,null,null,null,"2022-08-10"]
[null,null,null,null,null,null,null,null,null,null,null,null,null,null,null,null,null,null,null,null,null,null,null,null,null,null,null,null,"2022-08-11"]
[null,null,null,null,null,null,null,null,null,null,null,null,null,null,null,null,null,null,null,null,null,null,null,null,null,null,null,null,"2022-08-12"]
[null,null,null,null,null,null,null,null,null,null,null,null,null,null,null,null,null,null,null,null,null,null,null,null,null,null,null,null,"2022-08-13"]
[null,null,null,null,null,null,null,null,null,null,null,null,null,null,null,null,null,null,null,null,null,null,null,null,null,null,null,null,"2022-08-14"]
[null,null,null,null,null,null,null,null,null,null,null,null,null,null,null,null,null,null,null,null,null,null,null,null,null,null,null,null,"2022-08-15"]
[null,null,null,null,null,null,null,null,null,null,null,null,null,null,null,null,null,null,null,null,null,null,null,null,null,null,null,null,"2022-08-16"]
[null,null,null,null,null,null,null,null,null,null,null,null,null,null,null,null,null,null,null,null,null,null,null,null,null,null,null,null,"2022-08-17"]
[null,null,null,null,null,null,null,null,null,null,null,null,null,null,null,null,null,null,null,null,null,null,null,null,null,null,null,null,"2022-08-18"]
[null,null,null,null,null,null,null,null,null,null,null,null,null,null,null,null,null,null,null,null,null,null,null,null,null,null,null,null,"2022-08-19"]
[null,null,null,null,null,null,null,null,null,null,null,null,null,null,null,null,null,null,null,null,null,null,null,null,null,null,null,null,"2022-08-20"]
[null,null,null,null,null,null,null,null,null,null,null,null,null,null,null,null,null,null,null,null,null,null,null,null,null,null,null,null,"2022-08-21"]
[null,null,null,null,null,null,null,null,null,null,null,null,null,null,null,null,null,null,null,null,null,null,null,null,null,null,null,null,"2022-08-22"]
[null,null,null,null,null,null,null,null,null,null,null,null,null,null,null,null,null,null,null,null,null,null,null,null,null,null,null,null,"2022-08-23"]
[null,null,null,null,null,null,null,null,null,null,null,null,null,null,null,null,null,null,null,null,null,null,null,null,null,null,null,null,"2022-08-24"]
[]
[null,null,null,null,null,null,null,null,null,null,null,null,null,null,null,null,null,null,null,null,null,null,null,null,null,null,null,null,"2022-10-17"]
[null,null,null,null,null,null,null,null,null,null,null,null,null,null,null,null,null,null,null,null,null,null,null,null,null,null,null,null,"2022-10-18"]
[null,null,null,null,null,null,null,null,null,null,null,null,null,null,null,null,null,null,null,null,null,null,null,null,null,null,null,null,"2022-10-19"]
[null,null,null,null,null,null,null,null,null,null,null,null,null,null,null,null,null,null,null,null,null,null,null,null,null,null,null,null,"2022-10-20"]
[null,null,null,null,null,null,null,null,null,null,null,null,null,null,null,null,null,null,null,null,null,null,null,null,null,null,null,null,"2022-10-21"]
[null,null,null,null,null,null,null,null,null,null,null,null,null,null,null,null,null,null,null,null,null,null,null,null,null,null,null,null,"2022-10-22"]
[null,null,null,null,null,null,null,null,null,null,null,null,null,null,null,null,null,null,null,null,null,null,null,null,null,null,null,null,"2022-10-23"]
[null,null,null,null,null,null,null,null,null,null,null,null,null,null,null,null,null,null,null,null,null,null,null,null,null,null,null,null,"2022-10-24"]
[null,null,null,null,null,null,null,null,null,null,null,null,null,null,null,null,null,null,null,null,null,null,null,null,null,null,null,null,"2022-10-25"]
[null,null,null,null,null,null,null,null,null,null,null,null,null,null,null,null,null,null,null,null,null,null,null,null,null,null,null,null,"2022-10-26"]
[null,null,null,null,null,null,null,null,null,null,null,null,null,null,null,null,null,null,null,null,null,null,null,null,null,null,null,null,"2022-10-27"]
[null,null,null,null,null,null,null,null,null,null,null,null,null,null,null,null,null,null,null,null,null,null,null,null,null,null,null,null,"2022-10-28"]
[]
[null,null,null,null,null,null,null,null,null,null,null,null,null,null,null,null,null,null,null,null,null,null,null,null,null,null,null,null,"2022-12-23"]
[null,null,null,null,null,null,null,null,null,null,null,null,null,null,null,null,null,null,null,null,null,null,null,null,null,null,null,null,"2022-12-24"]
[null,null,null,null,null,null,null,null,null,null,null,null,null,null,null,null,null,null,null,null,null,null,null,null,null,null,null,null,"2022-12-25"]
[null,null,null,null,null,null,null,null,null,null,null,null,null,null,null,null,null,null,null,null,null,null,null,null,null,null,null,null,"2022-12-26"]
[null,null,null,null,null,null,null,null,null,null,null,null,null,null,null,null,null,null,null,null,null,null,null,null,null,null,null,null,"2022-12-27"]
[null,null,null,null,null,null,null,null,null,null,null,null,null,null,null,null,null,null,null,null,null,null,null,null,null,null,null,null,"2022-12-28"]
[null,null,null,null,null,null,null,null,null,null,null,null,null,null,null,null,null,null,null,null,null,null,null,null,null,null,null,null,"2022-12-29"]
[null,null,null,null,null,null,null,null,null,null,null,null,null,null,null,null,null,null,null,null,null,null,null,null,null,null,null,null,"2022-12-30"]
[null,null,null,null,null,null,null,null,null,null,null,null,null,null,null,null,null,null,null,null,null,null,null,null,null,null,null,null,"2022-12-31"]
[null,null,null,null,null,null,null,null,null,null,null,null,null,null,null,null,null,null,null,null,null,null,null,null,null,null,null,null,"2023-01-01"]
[null,null,null,null,null,null,null,null,null,null,null,null,null,null,null,null,null,null,null,null,null,null,null,null,null,null,null,null,"2023-01-02"]
[null,null,null,null,null,null,null,null,null,null,null,null,null,null,null,null,null,null,null,null,null,null,null,null,null,null,null,null,"2023-01-03"]
[null,null,null,null,null,null,null,null,null,null,null,null,null,null,null,null,null,null,null,null,null,null,null,null,null,null,null,null,"2023-01-04"]
[null,null,null,null,null,null,null,null,null,null,null,null,null,null,null,null,null,null,null,null,null,null,null,null,null,null,null,null,"2023-01-05"]
[null,null,null,null,null,null,null,null,null,null,null,null,null,null,null,null,null,null,null,null,null,null,null,null,null,null,null,null,"2023-01-06"]
[]
[null,null,null,null,null,null,null,null,null,null,null,null,null,null,null,null,null,null,null,null,null,null,null,null,null,null,null,null,"2023-01-30"]
[null,null,null,null,null,null,null,null,null,null,null,null,null,null,null,null,null,null,null,null,null,null,null,null,null,null,null,null,"2023-01-31"]
[]
[null,null,null,null,null,null,null,null,null,null,null,null,null,null,null,null,null,null,null,null,null,null,null,null,null,null,null,null,"2023-03-27"]
[null,null,null,null,null,null,null,null,null,null,null,null,null,null,null,null,null,null,null,null,null,null,null,null,null,null,null,null,"2023-03-28"]
[null,null,null,null,null,null,null,null,null,null,null,null,null,null,null,null,null,null,null,null,null,null,null,null,null,null,null,null,"2023-03-29"]
[null,null,null,null,null,null,null,null,null,null,null,null,null,null,null,null,null,null,null,null,null,null,null,null,null,null,null,null,"2023-03-30"]
[null,null,null,null,null,null,null,null,null,null,null,null,null,null,null,null,null,null,null,null,null,null,null,null,null,null,null,null,"2023-03-31"]
[null,null,null,null,null,null,null,null,null,null,null,null,null,null,null,null,null,null,null,null,null,null,null,null,null,null,null,null,"2023-04-01"]
[null,null,null,null,null,null,null,null,null,null,null,null,null,null,null,null,null,null,null,null,null,null,null,null,null,null,null,null,"2023-04-02"]
[null,null,null,null,null,null,null,null,null,null,null,null,null,null,null,null,null,null,null,null,null,null,null,null,null,null,null,null,"2023-04-03"]
[null,null,null,null,null,null,null,null,null,null,null,null,null,null,null,null,null,null,null,null,null,null,null,null,null,null,null,null,"2023-04-04"]
[null,null,null,null,null,null,null,null,null,null,null,null,null,null,null,null,null,null,null,null,null,null,null,null,null,null,null,null,"2023-04-05"]
[null,null,null,null,null,null,null,null,null,null,null,null,null,null,null,null,null,null,null,null,null,null,null,null,null,null,null,null,"2023-04-06"]
[null,null,null,null,null,null,null,null,null,null,null,null,null,null,null,null,null,null,null,null,null,null,null,null,null,null,null,null,"2023-04-07"]
[null,null,null,null,null,null,null,null,null,null,null,null,null,null,null,null,null,null,null,null,null,null,null,null,null,null,null,null,"2023-04-08"]
[null,null,null,null,null,null,null,null,null,null,null,null,null,null,null,null,null,null,null,null,null,null,null,null,null,null,null,null,"2023-04-09"]
[null,null,null,null,null,null,null,null,null,null,null,null,null,null,null,null,null,null,null,null,null,null,null,null,null,null,null,null,"2023-04-10"]
[null,null,null,null,null,null,null,null,null,null,null,null,null,null,null,null,null,null,null,null,null,null,null,null,null,null,null,null,"2023-04-11"]
[]
[null,null,null,null,null,null,null,null,null,null,null,null,null,null,null,null,null,null,null,null,null,null,null,null,null,null,null,null,"2023-05-19"]
[null,null,null,null,null,null,null,null,null,null,null,null,null,null,null,null,null,null,null,null,null,null,null,null,null,null,null,null,"2023-05-30"]
[]
[null,null,null,null,null,null,null,null,null,null,null,null,null,null,null,null,null,null,null,null,null,null,null,null,null,null,null,null,"2023-07-06"]
[null,null,null,null,null,null,null,null,null,null,null,null,null,null,null,null,null,null,null,null,null,null,null,null,null,null,null,null,"2023-07-07"]
[null,null,null,null,null,null,null,null,null,null,null,null,null,null,null,null,null,null,null,null,null,null,null,null,null,null,null,null,"2023-07-08"]
[null,null,null,null,null,null,null,null,null,null,null,null,null,null,null,null,null,null,null,null,null,null,null,null,null,null,null,null,"2023-07-09"]
[null,null,null,null,null,null,null,null,null,null,null,null,null,null,null,null,null,null,null,null,null,null,null,null,null,null,null,null,"2023-07-10"]
[null,null,null,null,null,null,null,null,null,null,null,null,null,null,null,null,null,null,null,null,null,null,null,null,null,null,null,null,"2023-07-11"]
[null,null,null,null,null,null,null,null,null,null,null,null,null,null,null,null,null,null,null,null,null,null,null,null,null,null,null,null,"2023-07-12"]
[null,null,null,null,null,null,null,null,null,null,null,null,null,null,null,null,null,null,null,null,null,null,null,null,null,null,null,null,"2023-07-13"]
[null,null,null,null,null,null,null,null,null,null,null,null,null,null,null,null,null,null,null,null,null,null,null,null,null,null,null,null,"2023-07-14"]
[null,null,null,null,null,null,null,null,null,null,null,null,null,null,null,null,null,null,null,null,null,null,null,null,null,null,null,null,"2023-07-15"]
[null,null,null,null,null,null,null,null,null,null,null,null,null,null,null,null,null,null,null,null,null,null,null,null,null,null,null,null,"2023-07-16"]
[null,null,null,null,null,null,null,null,null,null,null,null,null,null,null,null,null,null,null,null,null,null,null,null,null,null,null,null,"2023-07-17"]
[null,null,null,null,null,null,null,null,null,null,null,null,null,null,null,null,null,null,null,null,null,null,null,null,null,null,null,null,"2023-07-18"]
[null,null,null,null,null,null,null,null,null,null,null,null,null,null,null,null,null,null,null,null,null,null,null,null,null,null,null,null,"2023-07-19"]
[null,null,null,null,null,null,null,null,null,null,null,null,null,null,null,null,null,null,null,null,null,null,null,null,null,null,null,null,"2023-07-20"]
[null,null,null,null,null,null,null,null,null,null,null,null,null,null,null,null,null,null,null,null,null,null,null,null,null,null,null,null,"2023-07-21"]
[null,null,null,null,null,null,null,null,null,null,null,null,null,null,null,null,null,null,null,null,null,null,null,null,null,null,null,null,"2023-07-22"]
[null,null,null,null,null,null,null,null,null,null,null,null,null,null,null,null,null,null,null,null,null,null,null,null,null,null,null,null,"2023-07-23"]
[null,null,null,null,null,null,null,null,null,null,null,null,null,null,null,null,null,null,null,null,null,null,null,null,null,null,null,null,"2023-07-24"]
[null,null,null,null,null,null,null,null,null,null,null,null,null,null,null,null,null,null,null,null,null,null,null,null,null,null,null,null,"2023-07-25"]
[null,null,null,null,null,null,null,null,null,null,null,null,null,null,null,null,null,null,null,null,null,null,null,null,null,null,null,null,"2023-07-26"]
[null,null,null,null,null,null,null,null,null,null,null,null,null,null,null,null,null,null,null,null,null,null,null,null,null,null,null,null,"2023-07-27"]
[null,null,null,null,null,null,null,null,null,null,null,null,null,null,null,null,null,null,null,null,null,null,null,null,null,null,null,null,"2023-07-28"]
[null,null,null,null,null,null,null,null,null,null,null,null,null,null,null,null,null,null,null,null,null,null,null,null,null,null,null,null,"2023-07-29"]
[null,null,null,null,null,null,null,null,null,null,null,null,null,null,null,null,null,null,null,null,null,null,null,null,null,null,null,null,"2023-07-30"]
[null,null,null,null,null,null,null,null,null,null,null,null,null,null,null,null,null,null,null,null,null,null,null,null,null,null,null,null,"2023-07-31"]
[null,null,null,null,null,null,null,null,null,null,null,null,null,null,null,null,null,null,null,null,null,null,null,null,null,null,null,null,"2023-08-01"]
[null,null,null,null,null,null,null,null,null,null,null,null,null,null,null,null,null,null,null,null,null,null,null,null,null,null,null,null,"2023-08-02"]
[null,null,null,null,null,null,null,null,null,null,null,null,null,null,null,null,null,null,null,null,null,null,null,null,null,null,null,null,"2023-08-03"]
[null,null,null,null,null,null,null,null,null,null,null,null,null,null,null,null,null,null,null,null,null,null,null,null,null,null,null,null,"2023-08-04"]
[null,null,null,null,null,null,null,null,null,null,null,null,null,null,null,null,null,null,null,null,null,null,null,null,null,null,null,null,"2023-08-05"]
[null,null,null,null,null,null,null,null,null,null,null,null,null,null,null,null,null,null,null,null,null,null,null,null,null,null,null,null,"2023-08-06"]
[null,null,null,null,null,null,null,null,null,null,null,null,null,null,null,null,null,null,null,null,null,null,null,null,null,null,null,null,"2023-08-07"]
[null,null,null,null,null,null,null,null,null,null,null,null,null,null,null,null,null,null,null,null,null,null,null,null,null,null,null,null,"2023-08-08"]
[null,null,null,null,null,null,null,null,null,null,null,null,null,null,null,null,null,null,null,null,null,null,null,null,null,null,null,null,"2023-08-09"]
[null,null,null,null,null,null,null,null,null,null,null,null,null,null,null,null,null,null,null,null,null,null,null,null,null,null,null,null,"2023-08-10"]
[null,null,null,null,null,null,null,null,null,null,null,null,null,null,null,null,null,null,null,null,null,null,null,null,null,null,null,null,"2023-08-11"]
[null,null,null,null,null,null,null,null,null,null,null,null,null,null,null,null,null,null,null,null,null,null,null,null,null,null,null,null,"2023-08-12"]
[null,null,null,null,null,null,null,null,null,null,null,null,null,null,null,null,null,null,null,null,null,null,null,null,null,null,null,null,"2023-08-13"]
[null,null,null,null,null,null,null,null,null,null,null,null,null,null,null,null,null,null,null,null,null,null,null,null,null,null,null,null,"2023-08-14"]
[null,null,null,null,null,null,null,null,null,null,null,null,null,null,null,null,null,null,null,null,null,null,null,null,null,null,null,null,"2023-08-15"]
[null,null,null,null,null,null,null,null,null,null,null,null,null,null,null,null,null,null,null,null,null,null,null,null,null,null,null,null,"2023-08-16"]
[]
[null,null,null,null,null,null,null,null,null,null,null,null,null,null,null,null,null,null,null,null,null,null,null,null,null,null,null,null,"2023-10-02"]
[]
[null,null,null,null,null,null,null,null,null,null,null,null,null,null,null,null,null,null,null,null,null,null,null,null,null,null,null,null,"2023-10-16"]
[null,null,null,null,null,null,null,null,null,null,null,null,null,null,null,null,null,null,null,null,null,null,null,null,null,null,null,null,"2023-10-17"]
[null,null,null,null,null,null,null,null,null,null,null,null,null,null,null,null,null,null,null,null,null,null,null,null,null,null,null,null,"2023-10-18"]
[null,null,null,null,null,null,null,null,null,null,null,null,null,null,null,null,null,null,null,null,null,null,null,null,null,null,null,null,"2023-10-19"]
[null,null,null,null,null,null,null,null,null,null,null,null,null,null,null,null,null,null,null,null,null,null,null,null,null,null,null,null,"2023-10-20"]
[null,null,null,null,null,null,null,null,null,null,null,null,null,null,null,null,null,null,null,null,null,null,null,null,null,null,null,null,"2023-10-21"]
[null,null,null,null,null,null,null,null,null,null,null,null,null,null,null,null,null,null,null,null,null,null,null,null,null,null,null,null,"2023-10-22"]
[null,null,null,null,null,null,null,null,null,null,null,null,null,null,null,null,null,null,null,null,null,null,null,null,null,null,null,null,"2023-10-23"]
[null,null,null,null,null,null,null,null,null,null,null,null,null,null,null,null,null,null,null,null,null,null,null,null,null,null,null,null,"2023-10-24"]
[null,null,null,null,null,null,null,null,null,null,null,null,null,null,null,null,null,null,null,null,null,null,null,null,null,null,null,null,"2023-10-25"]
[null,null,null,null,null,null,null,null,null,null,null,null,null,null,null,null,null,null,null,null,null,null,null,null,null,null,null,null,"2023-10-26"]
[null,null,null,null,null,null,null,null,null,null,null,null,null,null,null,null,null,null,null,null,null,null,null,null,null,null,null,null,"2023-10-27"]
[null,null,null,null,null,null,null,null,null,null,null,null,null,null,null,null,null,null,null,null,null,null,null,null,null,null,null,null,"2023-10-28"]
[null,null,null,null,null,null,null,null,null,null,null,null,null,null,null,null,null,null,null,null,null,null,null,null,null,null,null,null,"2023-10-29"]
[null,null,null,null,null,null,null,null,null,null,null,null,null,null,null,null,null,null,null,null,null,null,null,null,null,null,null,null,"2023-10-30"]
[]
[null,null,null,null,null,null,null,null,null,null,null,null,null,null,null,null,null,null,null,null,null,null,null,null,null,null,null,null,"2023-12-27"]
[null,null,null,null,null,null,null,null,null,null,null,null,null,null,null,null,null,null,null,null,null,null,null,null,null,null,null,null,"2023-12-28"]
[null,null,null,null,null,null,null,null,null,null,null,null,null,null,null,null,null,null,null,null,null,null,null,null,null,null,null,null,"2023-12-29"]
[null,null,null,null,null,null,null,null,null,null,null,null,null,null,null,null,null,null,null,null,null,null,null,null,null,null,null,null,"2023-12-30"]
[null,null,null,null,null,null,null,null,null,null,null,null,null,null,null,null,null,null,null,null,null,null,null,null,null,null,null,null,"2023-12-31"]
[null,null,null,null,null,null,null,null,null,null,null,null,null,null,null,null,null,null,null,null,null,null,null,null,null,null,null,null,"2024-01-01"]
[null,null,null,null,null,null,null,null,null,null,null,null,null,null,null,null,null,null,null,null,null,null,null,null,null,null,null,null,"2024-01-02"]
[null,null,null,null,null,null,null,null,null,null,null,null,null,null,null,null,null,null,null,null,null,null,null,null,null,null,null,null,"2024-01-03"]
[null,null,null,null,null,null,null,null,null,null,null,null,null,null,null,null,null,null,null,null,null,null,null,null,null,null,null,null,"2024-01-04"]
[null,null,null,null,null,null,null,null,null,null,null,null,null,null,null,null,null,null,null,null,null,null,null,null,null,null,null,null,"2024-01-05"]
[]
[null,null,null,null,null,null,null,null,null,null,null,null,null,null,null,null,null,null,null,null,null,null,null,null,null,null,null,null,"2024-02-01"]
[null,null,null,null,null,null,null,null,null,null,null,null,null,null,null,null,null,null,null,null,null,null,null,null,null,null,null,null,"2024-02-02"]
[]
[null,null,null,null,null,null,null,null,null,null,null,null,null,null,null,null,null,null,null,null,null,null,null,null,null,null,null,null,"2024-03-18"]
[null,null,null,null,null,null,null,null,null,null,null,null,null,null,null,null,null,null,null,null,null,null,null,null,null,null,null,null,"2024-03-19"]
[null,null,null,null,null,null,null,null,null,null,null,null,null,null,null,null,null,null,null,null,null,null,null,null,null,null,null,null,"2024-03-20"]
[null,null,null,null,null,null,null,null,null,null,null,null,null,null,null,null,null,null,null,null,null,null,null,null,null,null,null,null,"2024-03-21"]
[null,null,null,null,null,null,null,null,null,null,null,null,null,null,null,null,null,null,null,null,null,null,null,null,null,null,null,null,"2024-03-22"]
[null,null,null,null,null,null,null,null,null,null,null,null,null,null,null,null,null,null,null,null,null,null,null,null,null,null,null,null,"2024-03-23"]
[null,null,null,null,null,null,null,null,null,null,null,null,null,null,null,null,null,null,null,null,null,null,null,null,null,null,null,null,"2024-03-24"]
[null,null,null,null,null,null,null,null,null,null,null,null,null,null,null,null,null,null,null,null,null,null,null,null,null,null,null,null,"2024-03-25"]
[null,null,null,null,null,null,null,null,null,null,null,null,null,null,null,null,null,null,null,null,null,null,null,null,null,null,null,null,"2024-03-26"]
[null,null,null,null,null,null,null,null,null,null,null,null,null,null,null,null,null,null,null,null,null,null,null,null,null,null,null,null,"2024-03-27"]
[null,null,null,null,null,null,null,null,null,null,null,null,null,null,null,null,null,null,null,null,null,null,null,null,null,null,null,null,"2024-03-28"]
[]
[null,null,null,null,null,null,null,null,null,null,null,null,null,null,null,null,null,null,null,null,null,null,null,null,null,null,null,null,"2024-05-10"]
[null,null,null,null,null,null,null,null,null,null,null,null,null,null,null,null,null,null,null,null,null,null,null,null,null,null,null,null,"2024-05-21"]
[]
[]
[null,null,null,null,null,null,null,null,null,null,null,null,null,null,null,null,null,null,null,null,null,null,null,null,null,null,null,null,"2024-06-24"]
[null,null,null,null,null,null,null,null,null,null,null,null,null,null,null,null,null,null,null,null,null,null,null,null,null,null,null,null,"2024-06-25"]
[null,null,null,null,null,null,null,null,null,null,null,null,null,null,null,null,null,null,null,null,null,null,null,null,null,null,null,null,"2024-06-26"]
[null,null,null,null,null,null,null,null,null,null,null,null,null,null,null,null,null,null,null,null,null,null,null,null,null,null,null,null,"2024-06-27"]
[null,null,null,null,null,null,null,null,null,null,null,null,null,null,null,null,null,null,null,null,null,null,null,null,null,null,null,null,"2024-06-28"]
[null,null,null,null,null,null,null,null,null,null,null,null,null,null,null,null,null,null,null,null,null,null,null,null,null,null,null,null,"2024-06-29"]
[null,null,null,null,null,null,null,null,null,null,null,null,null,null,null,null,null,null,null,null,null,null,null,null,null,null,null,null,"2024-06-30"]
[null,null,null,null,null,null,null,null,null,null,null,null,null,null,null,null,null,null,null,null,null,null,null,null,null,null,null,null,"2024-07-01"]
[null,null,null,null,null,null,null,null,null,null,null,null,null,null,null,null,null,null,null,null,null,null,null,null,null,null,null,null,"2024-07-02"]
[null,null,null,null,null,null,null,null,null,null,null,null,null,null,null,null,null,null,null,null,null,null,null,null,null,null,null,null,"2024-07-03"]
[null,null,null,null,null,null,null,null,null,null,null,null,null,null,null,null,null,null,null,null,null,null,null,null,null,null,null,null,"2024-07-04"]
[null,null,null,null,null,null,null,null,null,null,null,null,null,null,null,null,null,null,null,null,null,null,null,null,null,null,null,null,"2024-07-05"]
[null,null,null,null,null,null,null,null,null,null,null,null,null,null,null,null,null,null,null,null,null,null,null,null,null,null,null,null,"2024-07-06"]
[null,null,null,null,null,null,null,null,null,null,null,null,null,null,null,null,null,null,null,null,null,null,null,null,null,null,null,null,"2024-07-07"]
[null,null,null,null,null,null,null,null,null,null,null,null,null,null,null,null,null,null,null,null,null,null,null,null,null,null,null,null,"2024-07-08"]
[null,null,null,null,null,null,null,null,null,null,null,null,null,null,null,null,null,null,null,null,null,null,null,null,null,null,null,null,"2024-07-09"]
[null,null,null,null,null,null,null,null,null,null,null,null,null,null,null,null,null,null,null,null,null,null,null,null,null,null,null,null,"2024-07-10"]
[null,null,null,null,null,null,null,null,null,null,null,null,null,null,null,null,null,null,null,null,null,null,null,null,null,null,null,null,"2024-07-11"]
[null,null,null,null,null,null,null,null,null,null,null,null,null,null,null,null,null,null,null,null,null,null,null,null,null,null,null,null,"2024-07-12"]
[null,null,null,null,null,null,null,null,null,null,null,null,null,null,null,null,null,null,null,null,null,null,null,null,null,null,null,null,"2024-07-13"]
[null,null,null,null,null,null,null,null,null,null,null,null,null,null,null,null,null,null,null,null,null,null,null,null,null,null,null,null,"2024-07-14"]
[null,null,null,null,null,null,null,null,null,null,null,null,null,null,null,null,null,null,null,null,null,null,null,null,null,null,null,null,"2024-07-15"]
[null,null,null,null,null,null,null,null,null,null,null,null,null,null,null,null,null,null,null,null,null,null,null,null,null,null,null,null,"2024-07-16"]
[null,null,null,null,null,null,null,null,null,null,null,null,null,null,null,null,null,null,null,null,null,null,null,null,null,null,null,null,"2024-07-17"]
[null,null,null,null,null,null,null,null,null,null,null,null,null,null,null,null,null,null,null,null,null,null,null,null,null,null,null,null,"2024-07-18"]
[null,null,null,null,null,null,null,null,null,null,null,null,null,null,null,null,null,null,null,null,null,null,null,null,null,null,null,null,"2024-07-19"]
[null,null,null,null,null,null,null,null,null,null,null,null,null,null,null,null,null,null,null,null,null,null,null,null,null,null,null,null,"2024-07-20"]
[null,null,null,null,null,null,null,null,null,null,null,null,null,null,null,null,null,null,null,null,null,null,null,null,null,null,null,null,"2024-07-21"]
[null,null,null,null,null,null,null,null,null,null,null,null,null,null,null,null,null,null,null,null,null,null,null,null,null,null,null,null,"2024-07-22"]
[null,null,null,null,null,null,null,null,null,null,null,null,null,null,null,null,null,null,null,null,null,null,null,null,null,null,null,null,"2024-07-23"]
[null,null,null,null,null,null,null,null,null,null,null,null,null,null,null,null,null,null,null,null,null,null,null,null,null,null,null,null,"2024-07-24"]
[null,null,null,null,null,null,null,null,null,null,null,null,null,null,null,null,null,null,null,null,null,null,null,null,null,null,null,null,"2024-07-25"]
[null,null,null,null,null,null,null,null,null,null,null,null,null,null,null,null,null,null,null,null,null,null,null,null,null,null,null,null,"2024-07-26"]
[null,null,null,null,null,null,null,null,null,null,null,null,null,null,null,null,null,null,null,null,null,null,null,null,null,null,null,null,"2024-07-27"]
[null,null,null,null,null,null,null,null,null,null,null,null,null,null,null,null,null,null,null,null,null,null,null,null,null,null,null,null,"2024-07-28"]
[null,null,null,null,null,null,null,null,null,null,null,null,null,null,null,null,null,null,null,null,null,null,null,null,null,null,null,null,"2024-07-29"]
[null,null,null,null,null,null,null,null,null,null,null,null,null,null,null,null,null,null,null,null,null,null,null,null,null,null,null,null,"2024-07-30"]
[null,null,null,null,null,null,null,null,null,null,null,null,null,null,null,null,null,null,null,null,null,null,null,null,null,null,null,null,"2024-07-31"]
[null,null,null,null,null,null,null,null,null,null,null,null,null,null,null,null,null,null,null,null,null,null,null,null,null,null,null,null,"2024-08-01"]
[null,null,null,null,null,null,null,null,null,null,null,null,null,null,null,null,null,null,null,null,null,null,null,null,null,null,null,null,"2024-08-02"]
[null,null,null,null,null,null,null,null,null,null,null,null,null,null,null,null,null,null,null,null,null,null,null,null,null,null,null,null,"2024-08-03"]
[]
[null,null,null,null,null,null,null,null,null,null,null,null,null,null,null,null,null,null,null,null,null,null,null,null,null,null,null,null,"2024-10-04"]
[null,null,null,null,null,null,null,null,null,null,null,null,null,null,null,null,null,null,null,null,null,null,null,null,null,null,null,null,"2024-10-05"]
[null,null,null,null,null,null,null,null,null,null,null,null,null,null,null,null,null,null,null,null,null,null,null,null,null,null,null,null,"2024-10-06"]
[null,null,null,null,null,null,null,null,null,null,null,null,null,null,null,null,null,null,null,null,null,null,null,null,null,null,null,null,"2024-10-07"]
[null,null,null,null,null,null,null,null,null,null,null,null,null,null,null,null,null,null,null,null,null,null,null,null,null,null,null,null,"2024-10-08"]
[null,null,null,null,null,null,null,null,null,null,null,null,null,null,null,null,null,null,null,null,null,null,null,null,null,null,null,null,"2024-10-09"]
[null,null,null,null,null,null,null,null,null,null,null,null,null,null,null,null,null,null,null,null,null,null,null,null,null,null,null,null,"2024-10-10"]
[null,null,null,null,null,null,null,null,null,null,null,null,null,null,null,null,null,null,null,null,null,null,null,null,null,null,null,null,"2024-10-11"]
[null,null,null,null,null,null,null,null,null,null,null,null,null,null,null,null,null,null,null,null,null,null,null,null,null,null,null,null,"2024-10-12"]
[null,null,null,null,null,null,null,null,null,null,null,null,null,null,null,null,null,null,null,null,null,null,null,null,null,null,null,null,"2024-10-13"]
[null,null,null,null,null,null,null,null,null,null,null,null,null,null,null,null,null,null,null,null,null,null,null,null,null,null,null,null,"2024-10-14"]
[null,null,null,null,null,null,null,null,null,null,null,null,null,null,null,null,null,null,null,null,null,null,null,null,null,null,null,null,"2024-10-15"]
[null,null,null,null,null,null,null,null,null,null,null,null,null,null,null,null,null,null,null,null,null,null,null,null,null,null,null,null,"2024-10-16"]
[null,null,null,null,null,null,null,null,null,null,null,null,null,null,null,null,null,null,null,null,null,null,null,null,null,null,null,null,"2024-10-17"]
[null,null,null,null,null,null,null,null,null,null,null,null,null,null,null,null,null,null,null,null,null,null,null,null,null,null,null,null,"2024-10-18"]
[null,null,null,null,null,null,null,null,null,null,null,null,null,null,null,null,null,null,null,null,null,null,null,null,null,null,null,null,"2024-10-19"]
[]
[null,null,null,null,null,null,null,null,null,null,null,null,null,null,null,null,null,null,null,null,null,null,null,null,null,null,null,null,"2024-11-01"]
[]
[null,null,null,null,null,null,null,null,null,null,null,null,null,null,null,null,null,null,null,null,null,null,null,null,null,null,null,null,"2024-12-23"]
[null,null,null,null,null,null,null,null,null,null,null,null,null,null,null,null,null,null,null,null,null,null,null,null,null,null,null,null,"2024-12-24"]
[null,null,null,null,null,null,null,null,null,null,null,null,null,null,null,null,null,null,null,null,null,null,null,null,null,null,null,null,"2024-12-25"]
[null,null,null,null,null,null,null,null,null,null,null,null,null,null,null,null,null,null,null,null,null,null,null,null,null,null,null,null,"2024-12-26"]
[null,null,null,null,null,null,null,null,null,null,null,null,null,null,null,null,null,null,null,null,null,null,null,null,null,null,null,null,"2024-12-27"]
[null,null,null,null,null,null,null,null,null,null,null,null,null,null,null,null,null,null,null,null,null,null,null,null,null,null,null,null,"2024-12-28"]
[null,null,null,null,null,null,null,null,null,null,null,null,null,null,null,null,null,null,null,null,null,null,null,null,null,null,null,null,"2024-12-29"]
[null,null,null,null,null,null,null,null,null,null,null,null,null,null,null,null,null,null,null,null,null,null,null,null,null,null,null,null,"2024-12-30"]
[null,null,null,null,null,null,null,null,null,null,null,null,null,null,null,null,null,null,null,null,null,null,null,null,null,null,null,null,"2024-12-31"]
[null,null,null,null,null,null,null,null,null,null,null,null,null,null,null,null,null,null,null,null,null,null,null,null,null,null,null,null,"2025-01-01"]
[null,null,null,null,null,null,null,null,null,null,null,null,null,null,null,null,null,null,null,null,null,null,null,null,null,null,null,null,"2025-01-02"]
[null,null,null,null,null,null,null,null,null,null,null,null,null,null,null,null,null,null,null,null,null,null,null,null,null,null,null,null,"2025-01-03"]
[null,null,null,null,null,null,null,null,null,null,null,null,null,null,null,null,null,null,null,null,null,null,null,null,null,null,null,null,"2025-01-04"]
[]
[null,null,null,null,null,null,null,null,null,null,null,null,null,null,null,null,null,null,null,null,null,null,null,null,null,null,null,null,"2025-02-03"]
[null,null,null,null,null,null,null,null,null,null,null,null,null,null,null,null,null,null,null,null,null,null,null,null,null,null,null,null,"2025-02-04"]
[]
[null,null,null,null,null,null,null,null,null,null,null,null,null,null,null,null,null,null,null,null,null,null,null,null,null,null,null,null,"2025-04-07"]
[null,null,null,null,null,null,null,null,null,null,null,null,null,null,null,null,null,null,null,null,null,null,null,null,null,null,null,null,"2025-04-08"]
[null,null,null,null,null,null,null,null,null,null,null,null,null,null,null,null,null,null,null,null,null,null,null,null,null,null,null,null,"2025-04-09"]
[null,null,null,null,null,null,null,null,null,null,null,null,null,null,null,null,null,null,null,null,null,null,null,null,null,null,null,null,"2025-04-10"]
[null,null,null,null,null,null,null,null,null,null,null,null,null,null,null,null,null,null,null,null,null,null,null,null,null,null,null,null,"2025-04-11"]
[null,null,null,null,null,null,null,null,null,null,null,null,null,null,null,null,null,null,null,null,null,null,null,null,null,null,null,null,"2025-04-12"]
[null,null,null,null,null,null,null,null,null,null,null,null,null,null,null,null,null,null,null,null,null,null,null,null,null,null,null,null,"2025-04-13"]
[null,null,null,null,null,null,null,null,null,null,null,null,null,null,null,null,null,null,null,null,null,null,null,null,null,null,null,null,"2025-04-14"]
[null,null,null,null,null,null,null,null,null,null,null,null,null,null,null,null,null,null,null,null,null,null,null,null,null,null,null,null,"2025-04-15"]
[null,null,null,null,null,null,null,null,null,null,null,null,null,null,null,null,null,null,null,null,null,null,null,null,null,null,null,null,"2025-04-16"]
[null,null,null,null,null,null,null,null,null,null,null,null,null,null,null,null,null,null,null,null,null,null,null,null,null,null,null,null,"2025-04-17"]
[null,null,null,null,null,null,null,null,null,null,null,null,null,null,null,null,null,null,null,null,null,null,null,null,null,null,null,null,"2025-04-18"]
[null,null,null,null,null,null,null,null,null,null,null,null,null,null,null,null,null,null,null,null,null,null,null,null,null,null,null,null,"2025-04-19"]
[null,null,null,null,null,null,null,null,null,null,null,null,null,null,null,null,null,null,null,null,null,null,null,null,null,null,null,null,"2025-04-30"]
[]
[null,null,null,null,null,null,null,null,null,null,null,null,null,null,null,null,null,null,null,null,null,null,null,null,null,null,null,null,"2025-05-02"]
[null,null,null,null,null,null,null,null,null,null,null,null,null,null,null,null,null,null,null,null,null,null,null,null,null,null,null,null,"2025-05-30"]
[null,null,null,null,null,null,null,null,null,null,null,null,null,null,null,null,null,null,null,null,null,null,null,null,null,null,null,null,"2025-06-10"]
[]
[null,null,null,null,null,null,null,null,null,null,null,null,null,null,null,null,null,null,null,null,null,null,null,null,null,null,null,null,"2025-07-03"]
[null,null,null,null,null,null,null,null,null,null,null,null,null,null,null,null,null,null,null,null,null,null,null,null,null,null,null,null,"2025-07-04"]
[null,null,null,null,null,null,null,null,null,null,null,null,null,null,null,null,null,null,null,null,null,null,null,null,null,null,null,null,"2025-07-05"]
[null,null,null,null,null,null,null,null,null,null,null,null,null,null,null,null,null,null,null,null,null,null,null,null,null,null,null,null,"2025-07-06"]
[null,null,null,null,null,null,null,null,null,null,null,null,null,null,null,null,null,null,null,null,null,null,null,null,null,null,null,null,"2025-07-07"]
[null,null,null,null,null,null,null,null,null,null,null,null,null,null,null,null,null,null,null,null,null,null,null,null,null,null,null,null,"2025-07-08"]
[null,null,null,null,null,null,null,null,null,null,null,null,null,null,null,null,null,null,null,null,null,null,null,null,null,null,null,null,"2025-07-09"]
[null,null,null,null,null,null,null,null,null,null,null,null,null,null,null,null,null,null,null,null,null,null,null,null,null,null,null,null,"2025-07-10"]
[null,null,null,null,null,null,null,null,null,null,null,null,null,null,null,null,null,null,null,null,null,null,null,null,null,null,null,null,"2025-07-11"]
[null,null,null,null,null,null,null,null,null,null,null,null,null,null,null,null,null,null,null,null,null,null,null,null,null,null,null,null,"2025-07-12"]
[null,null,null,null,null,null,null,null,null,null,null,null,null,null,null,null,null,null,null,null,null,null,null,null,null,null,null,null,"2025-07-13"]
[null,null,null,null,null,null,null,null,null,null,null,null,null,null,null,null,null,null,null,null,null,null,null,null,null,null,null,null,"2025-07-14"]
[null,null,null,null,null,null,null,null,null,null,null,null,null,null,null,null,null,null,null,null,null,null,null,null,null,null,null,null,"2025-07-15"]
[null,null,null,null,null,null,null,null,null,null,null,null,null,null,null,null,null,null,null,null,null,null,null,null,null,null,null,null,"2025-07-16"]
[null,null,null,null,null,null,null,null,null,null,null,null,null,null,null,null,null,null,null,null,null,null,null,null,null,null,null,null,"2025-07-17"]
[null,null,null,null,null,null,null,null,null,null,null,null,null,null,null,null,null,null,null,null,null,null,null,null,null,null,null,null,"2025-07-18"]
[null,null,null,null,null,null,null,null,null,null,null,null,null,null,null,null,null,null,null,null,null,null,null,null,null,null,null,null,"2025-07-19"]
[null,null,null,null,null,null,null,null,null,null,null,null,null,null,null,null,null,null,null,null,null,null,null,null,null,null,null,null,"2025-07-20"]
[null,null,null,null,null,null,null,null,null,null,null,null,null,null,null,null,null,null,null,null,null,null,null,null,null,null,null,null,"2025-07-21"]
[null,null,null,null,null,null,null,null,null,null,null,null,null,null,null,null,null,null,null,null,null,null,null,null,null,null,null,null,"2025-07-22"]
[null,null,null,null,null,null,null,null,null,null,null,null,null,null,null,null,null,null,null,null,null,null,null,null,null,null,null,null,"2025-07-23"]
[null,null,null,null,null,null,null,null,null,null,null,null,null,null,null,null,null,null,null,null,null,null,null,null,null,null,null,null,"2025-07-24"]
[null,null,null,null,null,null,null,null,null,null,null,null,null,null,null,null,null,null,null,null,null,null,null,null,null,null,null,null,"2025-07-25"]
[null,null,null,null,null,null,null,null,null,null,null,null,null,null,null,null,null,null,null,null,null,null,null,null,null,null,null,null,"2025-07-26"]
[null,null,null,null,null,null,null,null,null,null,null,null,null,null,null,null,null,null,null,null,null,null,null,null,null,null,null,null,"2025-07-27"]
[null,null,null,null,null,null,null,null,null,null,null,null,null,null,null,null,null,null,null,null,null,null,null,null,null,null,null,null,"2025-07-28"]
[null,null,null,null,null,null,null,null,null,null,null,null,null,null,null,null,null,null,null,null,null,null,null,null,null,null,null,null,"2025-07-29"]
[null,null,null,null,null,null,null,null,null,null,null,null,null,null,null,null,null,null,null,null,null,null,null,null,null,null,null,null,"2025-07-30"]
[null,null,null,null,null,null,null,null,null,null,null,null,null,null,null,null,null,null,null,null,null,null,null,null,null,null,null,null,"2025-07-31"]
[null,null,null,null,null,null,null,null,null,null,null,null,null,null,null,null,null,null,null,null,null,null,null,null,null,null,null,null,"2025-08-01"]
[null,null,null,null,null,null,null,null,null,null,null,null,null,null,null,null,null,null,null,null,null,null,null,null,null,null,null,null,"2025-08-02"]
[null,null,null,null,null,null,null,null,null,null,null,null,null,null,null,null,null,null,null,null,null,null,null,null,null,null,null,null,"2025-08-03"]
[null,null,null,null,null,null,null,null,null,null,null,null,null,null,null,null,null,null,null,null,null,null,null,null,null,null,null,null,"2025-08-04"]
[null,null,null,null,null,null,null,null,null,null,null,null,null,null,null,null,null,null,null,null,null,null,null,null,null,null,null,null,"2025-08-05"]
[null,null,null,null,null,null,null,null,null,null,null,null,null,null,null,null,null,null,null,null,null,null,null,null,null,null,null,null,"2025-08-06"]
[null,null,null,null,null,null,null,null,null,null,null,null,null,null,null,null,null,null,null,null,null,null,null,null,null,null,null,null,"2025-08-07"]
[null,null,null,null,null,null,null,null,null,null,null,null,null,null,null,null,null,null,null,null,null,null,null,null,null,null,null,null,"2025-08-08"]
[null,null,null,null,null,null,null,null,null,null,null,null,null,null,null,null,null,null,null,null,null,null,null,null,null,null,null,null,"2025-08-09"]
[null,null,null,null,null,null,null,null,null,null,null,null,null,null,null,null,null,null,null,null,null,null,null,null,null,null,null,null,"2025-08-10"]
[null,null,null,null,null,null,null,null,null,null,null,null,null,null,null,null,null,null,null,null,null,null,null,null,null,null,null,null,"2025-08-11"]
[null,null,null,null,null,null,null,null,null,null,null,null,null,null,null,null,null,null,null,null,null,null,null,null,null,null,null,null,"2025-08-12"]
[null,null,null,null,null,null,null,null,null,null,null,null,null,null,null,null,null,null,null,null,null,null,null,null,null,null,null,null,"2025-08-13"]
[]
[null,null,null,null,null,null,null,null,null,null,null,null,null,null,null,null,null,null,null,null,null,null,null,null,null,null,null,null,"2025-10-13"]
[null,null,null,null,null,null,null,null,null,null,null,null,null,null,null,null,null,null,null,null,null,null,null,null,null,null,null,null,"2025-10-14"]
[null,null,null,null,null,null,null,null,null,null,null,null,null,null,null,null,null,null,null,null,null,null,null,null,null,null,null,null,"2025-10-15"]
[null,null,null,null,null,null,null,null,null,null,null,null,null,null,null,null,null,null,null,null,null,null,null,null,null,null,null,null,"2025-10-16"]
[null,null,null,null,null,null,null,null,null,null,null,null,null,null,null,null,null,null,null,null,null,null,null,null,null,null,null,null,"2025-10-17"]
[null,null,null,null,null,null,null,null,null,null,null,null,null,null,null,null,null,null,null,null,null,null,null,null,null,null,null,null,"2025-10-18"]
[null,null,null,null,null,null,null,null,null,null,null,null,null,null,null,null,null,null,null,null,null,null,null,null,null,null,null,null,"2025-10-19"]
[null,null,null,null,null,null,null,null,null,null,null,null,null,null,null,null,null,null,null,null,null,null,null,null,null,null,null,null,"2025-10-20"]
[null,null,null,null,null,null,null,null,null,null,null,null,null,null,null,null,null,null,null,null,null,null,null,null,null,null,null,null,"2025-10-21"]
[null,null,null,null,null,null,null,null,null,null,null,null,null,null,null,null,null,null,null,null,null,null,null,null,null,null,null,null,"2025-10-22"]
[null,null,null,null,null,null,null,null,null,null,null,null,null,null,null,null,null,null,null,null,null,null,null,null,null,null,null,null,"2025-10-23"]
[null,null,null,null,null,null,null,null,null,null,null,null,null,null,null,null,null,null,null,null,null,null,null,null,null,null,null,null,"2025-10-24"]
[null,null,null,null,null,null,null,null,null,null,null,null,null,null,null,null,null,null,null,null,null,null,null,null,null,null,null,null,"2025-10-25"]
[]
[null,null,null,null,null,null,null,null,null,null,null,null,null,null,null,null,null,null,null,null,null,null,null,null,null,null,null,null,"2025-12-22"]
[null,null,null,null,null,null,null,null,null,null,null,null,null,null,null,null,null,null,null,null,null,null,null,null,null,null,null,null,"2025-12-23"]
[null,null,null,null,null,null,null,null,null,null,null,null,null,null,null,null,null,null,null,null,null,null,null,null,null,null,null,null,"2025-12-24"]
[null,null,null,null,null,null,null,null,null,null,null,null,null,null,null,null,null,null,null,null,null,null,null,null,null,null,null,null,"2025-12-25"]
[null,null,null,null,null,null,null,null,null,null,null,null,null,null,null,null,null,null,null,null,null,null,null,null,null,null,null,null,"2025-12-26"]
[null,null,null,null,null,null,null,null,null,null,null,null,null,null,null,null,null,null,null,null,null,null,null,null,null,null,null,null,"2025-12-27"]
[null,null,null,null,null,null,null,null,null,null,null,null,null,null,null,null,null,null,null,null,null,null,null,null,null,null,null,null,"2025-12-28"]
[null,null,null,null,null,null,null,null,null,null,null,null,null,null,null,null,null,null,null,null,null,null,null,null,null,null,null,null,"2025-12-29"]
[null,null,null,null,null,null,null,null,null,null,null,null,null,null,null,null,null,null,null,null,null,null,null,null,null,null,null,null,"2025-12-30"]
[null,null,null,null,null,null,null,null,null,null,null,null,null,null,null,null,null,null,null,null,null,null,null,null,null,null,null,null,"2025-12-31"]
[null,null,null,null,null,null,null,null,null,null,null,null,null,null,null,null,null,null,null,null,null,null,null,null,null,null,null,null,"2026-01-01"]
[null,null,null,null,null,null,null,null,null,null,null,null,null,null,null,null,null,null,null,null,null,null,null,null,null,null,null,null,"2026-01-02"]
[null,null,null,null,null,null,null,null,null,null,null,null,null,null,null,null,null,null,null,null,null,null,null,null,null,null,null,null,"2026-01-03"]
[null,null,null,null,null,null,null,null,null,null,null,null,null,null,null,null,null,null,null,null,null,null,null,null,null,null,null,null,"2026-01-04"]
[null,null,null,null,null,null,null,null,null,null,null,null,null,null,null,null,null,null,null,null,null,null,null,null,null,null,null,null,"2026-01-05"]

{"sheet":"Januar","index":1,"n_rows":366,"n_cols":47,"rows_kept":366,"cut":false,"hidden":false,"merged":[[277,3,278,3],[19,1,21,1],[36,2,38,2],[34,2,35,2],[43,2,44,2],[43,1,44,1],[45,1,47,1],[61,1,62,1],[63,1,65,1],[34,1,35,1],[36,1,38,1],[70,1,71,1],[72,1,74,1],[52,1,53,1],[54,1,56,1],[79,1,80,1],[81,1,83,1],[135,1,137,1],[124,1,125,1],[162,1,164,1],[151,1,152,1],[232,3,233,3],[234,1,236,1],[234,2,236,2],[133,1,134,1],[126,1,128,1],[189,3,191,3],[142,3,143,3],[144,3,146,3],[108,3,110,3],[115,1,116,1],[117,1,119,1],[135,2,137,2],[115,3,116,3],[117,3,119,3],[189,1,191,1],[108,2,110,2],[115,2,116,2],[117,2,119,2],[124,2,125,2],[126,2,128,2],[133,2,134,2],[196,3,197,3],[198,3,200,3],[162,3,164,3],[169,3,170,3],[171,3,173,3],[178,3,179,3],[180,3,182,3],[187,3,188,3],[286,1,287,1],[286,2,287,2],[286,3,287,3],[241,3,242,3],[205,1,206,1],[250,2,251,2],[252,2,254,2],[259,2,260,2],[243,3,245,3],[259,1,260,1],[259,3,260,3],[261,1,263,1],[234,3,236,3],[214,3,215,3],[216,1,218,1],[216,2,218,2],[288,1,290,1],[268,1,269,1],[151,3,152,3],[153,3,155,3],[160,3,161,3],[133,3,134,3],[135,3,137,3],[288,3,290,3],[261,3,263,3],[279,3,281,3],[205,3,206,3],[207,3,209,3],[250,3,251,3],[252,3,254,3],[153,1,155,1],[169,1,170,1],[171,1,173,1],[160,1,161,1],[270,3,272,3],[277,1,278,1],[277,2,278,2],[268,2,269,2],[268,3,269,3],[270,2,272,2],[216,3,218,3],[223,1,224,1],[223,2,224,2],[223,3,224,3],[225,1,227,1],[225,2,227,2],[225,3,227,3],[1,43,1,44],[2,43,3,44],[63,3,65,3],[142,1,143,1],[79,3,80,3],[144,1,146,1],[81,3,83,3],[106,1,107,1],[106,3,107,3],[17,3,18,3],[19,3,21,3],[34,3,35,3],[36,3,38,3],[43,3,44,3],[45,3,47,3],[52,3,53,3],[54,3,56,3],[2,1,3,1],[17,1,18,1],[70,3,71,3],[72,3,74,3],[124,3,125,3],[126,3,128,3],[180,1,182,1],[187,1,188,1],[169,2,170,2],[171,2,173,2],[178,2,179,2],[142,2,143,2],[144,2,146,2],[151,2,152,2],[153,2,155,2],[160,2,161,2],[162,2,164,2],[178,1,179,1],[180,2,182,2],[72,2,74,2],[79,2,80,2],[81,2,83,2],[106,2,107,2],[108,1,110,1],[241,2,242,2],[207,1,209,1],[241,1,242,1],[243,2,245,2],[288,2,290,2],[187,2,188,2],[189,2,191,2],[196,2,197,2],[198,2,200,2],[205,2,206,2],[207,2,209,2],[270,1,272,1],[214,1,215,1],[214,2,215,2],[232,1,233,1],[232,2,233,2],[196,1,197,1],[198,1,200,1],[279,1,281,1],[279,2,281,2],[250,1,251,1],[252,1,254,1],[243,1,245,1],[261,2,263,2],[2,2,2,3],[3,2,3,4],[45,2,47,2],[52,2,53,2],[54,2,56,2],[61,2,62,2],[63,2,65,2],[70,2,71,2],[17,2,18,2],[19,2,21,2],[61,3,62,3],[99,1,101,1],[99,2,101,2],[99,3,101,3],[88,1,89,1],[88,2,89,2],[88,3,89,3],[90,1,92,1],[90,2,92,2],[90,3,92,3],[97,1,98,1],[97,2,98,2],[97,3,98,3],[295,1,296,1],[295,2,296,2],[295,3,296,3],[297,1,299,1],[297,2,299,2],[297,3,299,3],[304,1,305,1],[304,2,305,2],[304,3,305,3],[306,1,308,1],[306,2,308,2],[306,3,308,3],[313,1,314,1],[313,2,314,2],[313,3,314,3],[315,1,317,1],[315,2,317,2],[315,3,317,3],[322,1,323,1],[322,2,323,2],[322,3,323,3],[324,1,326,1],[324,2,326,2],[324,3,326,3],[331,1,332,1],[331,2,332,2],[331,3,332,3],[333,1,335,1],[333,2,335,2],[333,3,335,3],[340,1,341,1],[340,2,341,2],[340,3,341,3],[342,1,344,1],[342,2,344,2],[342,3,344,3],[360,1,362,1],[360,2,362,2],[360,3,362,3],[349,1,350,1],[349,2,350,2],[349,3,350,3],[351,1,353,1],[351,2,353,2],[351,3,353,3],[358,1,359,1],[358,2,359,2],[358,3,359,3],[26,1,27,1],[26,2,27,2],[26,3,27,3],[28,1,30,1],[28,2,30,2],[28,3,30,3],[10,1,11,1],[10,2,11,2],[10,3,11,3],[12,1,14,1],[12,2,14,2],[12,3,14,3]]}
[]
[null,null,null,null,null,{"$f":"IF(F3<>\"\",IF(WEEKDAY(F3)=4,TRUNC((F3-(YEAR(F3+MOD((8-WEEKDAY(F3)),7)-3)&\"/1/1\")-3+MOD((WEEKDAY((YEAR(F3+MOD((8-WEEKDAY(F3)),7)-3)&\"/1/1\"))+1),7))/7+1),\"\"),\"\")","v":1},{"$f":"IF(G3<>\"\",IF(WEEKDAY(G3)=4,TRUNC((G3-(YEAR(G3+MOD((8-WEEKDAY(G3)),7)-3)&\"/1/1\")-3+MOD((WEEKDAY((YEAR(G3+MOD((8-WEEKDAY(G3)),7)-3)&\"/1/1\"))+1),7))/7+1),\"\"),\"\")","v":""},"","","","","",2,"","","","","","",3,"","","","","","",4,"","","","","","",5,"","",null,null,null,null,null,null,null,"Verbleidende Zeit   (Minuten)"]
[null,{"$f":"Jahresüberblick!D7","v":"2025-01-01"},{"$f":"Datenbank!B6","v":44172.172847453701},null,{"$f":"Monat1","v":1},{"$f":"DATE(Jahr,E3,1)","v":"2025-01-01"},{"$f":"F3+1","v":"2025-01-02"},"2025-01-03","2025-01-04","2025-01-05","2025-01-06","2025-01-07","2025-01-08","2025-01-09","2025-01-10","2025-01-11","2025-01-12","2025-01-13","2025-01-14","2025-01-15","2025-01-16","2025-01-17","2025-01-18","2025-01-19","2025-01-20","2025-01-21","2025-01-22","2025-01-23","2025-01-24","2025-01-25","2025-01-26","2025-01-27","2025-01-28","2025-01-29","2025-01-30","2025-01-31",null,null,null,null,null,null,null,{"$f":"Datenbank!B5","v":"00:04:57"}]
[null,null,{"$f":"Datenbank!C6","v":"2024-12-08"},null,null,{"$f":"WEEKDAY(F3,2)+2","v":"1904-01-06"},"1904-01-07","1904-01-08","1904-01-09","1904-01-10","1904-01-04","1904-01-05","1904-01-06","1904-01-07","1904-01-08","1904-01-09","1904-01-10","1904-01-04","1904-01-05","1904-01-06","1904-01-07","1904-01-08","1904-01-09","1904-01-10","1904-01-04","1904-01-05","1904-01-06","1904-01-07","1904-01-08","1904-01-09","1904-01-10","1904-01-04","1904-01-05","1904-01-06","1904-01-07","1904-01-08"]
[null,null,null,null,null,null,null,null,null,null,null,null,null,null,null,null,null,null,null,null,null,null,null,null,null,null,null,null,null,null,null,null,null,null,null,null,"FRT","TU","✔","EAZ","EMA","AUB"]
[null,null,null,null,"Früh",{"$f":"COUNTIFS(F$17:F$326,\"F\",F$23:F$332,1)","v":0},{"$f":"COUNTIFS(G$17:G$326,\"F\",G$23:G$332,1)","v":8},8,4,0,8,8,8,8,8,4,0,8,8,8,8,8,4,0,8,8,8,8,8,4,0,7,7,8,8,8]
[null,null,null,null,"Spät",{"$f":"COUNTIFS(F$17:F$326,\"S\",F$23:F$332,1)","v":0},{"$f":"COUNTIFS(G$17:G$326,\"S\",G$23:G$332,1)","v":6},6,4,0,6,6,6,6,6,4,0,6,6,6,6,6,4,0,6,6,6,6,6,4,0,6,6,5,5,6]
[null,null,null,null,"Nacht",{"$f":"COUNTIFS(F$17:F$326,\"N\",F$23:F$332,1)","v":0},{"$f":"COUNTIFS(G$17:G$326,\"N\",G$23:G$332,1)","v":4},{"$f":"COUNTIFS(H$17:H$326,\"N\",H$23:H$332,1)","v":4},4,0,4,4,4,4,4,4,0,4,4,4,4,4,4,0,4,4,4,4,4,4,0,4,4,4,4,3,{"$f":"COUNTIFS(AK$17:AK$326,\"N\",AK$23:AK$332,1)","v":0},0,0,0,0,0]
[]
[null,"NG","FRT","TU",null,null,"NG","NG",null,null,"NG","NG","NG","NG","NG",null,null,"NG","NG","NG","NG","NG",null,null,"NG","NG","NG","NG","NG",null,null,"NG","NG","NG","NG","NG"]
[null,null,"6",null,"Zeitabw. Beginn"]
[null,null,null,null,"Anwesenheitsk."]
[null,"Max Mustermann",{"$f":"(C11)-(Januar!AK12+#REF!+#REF!+#REF!+#REF!+#REF!+#REF!+#REF!+#REF!+#REF!+#REF!+#REF!+#REF!)","v":{"$error":"#REF!"}},{"$f":"(D11+30)-(Januar!AL12+#REF!+#REF!+#REF!+#REF!+#REF!+#REF!+#REF!+#REF!+#REF!+#REF!+#REF!+#REF!)","v":{"$error":"#REF!"}},"Zeitabw. Ende"]
[null,null,null,null,"Tageszulage"]
[null,null,null,null,"Bezahlart"]
[]
[null,"NG","FRT","TU",null,null,"NG","NG",null,null,"NG","NG","NG","NG","NG",null,null,"NG","NG","NG","NG","NG",null,null,"NG","NG","NG","NG","NG",null,null,"NG","NG","NG","NG","NG"]
[null,null,"6",null,"Zeitabw. Beginn"]
[null,null,null,null,"Anwesenheitsk.",null,null,null,null,null,null,null,null,null,null,null,null,null,null,null,null,null,null,null,null,null,null,null,null,null,null,null,null,null,null,null,{"$f":"COUNTIF(F19:AJ19,\"FRT\")","v":0},{"$f":"COUNTIF(F19:AJ19,\"TU\")","v":0},{"$f":"COUNTIF(F19:AJ19,\"✔\")","v":0},{"$f":"COUNTIF(F19:AJ19,\"eaz\")","v":0},{"$f":"COUNTIF(F19:AJ19,\"ema\")","v":0},{"$f":"COUNTIF(F19:AJ19,\"AUB\")","v":0}]
[null,"Biene Maja",{"$f":"(C18)-(Januar!AK19+#REF!+#REF!+#REF!+#REF!+#REF!+#REF!+#REF!+#REF!+#REF!+#REF!+#REF!+#REF!)","v":{"$error":"#REF!"}},{"$f":"(D18+30)-(Januar!AL19+#REF!+#REF!+#REF!+#REF!+#REF!+#REF!+#REF!+#REF!+#REF!+#REF!+#REF!+#REF!)","v":{"$error":"#REF!"}},"Zeitabw. Ende"]
[null,null,null,null,"Tageszulage"]
[null,null,null,null,"Bezahlart"]
[null,null,null,null,null,{"$f":"IF(OR(F19=\"\",F19=\"✔\"),1,0)","v":1},{"$f":"IF(OR(G19=\"\",G19=\"✔\"),1,0)","v":1},{"$f":"IF(OR(H19=\"\",H19=\"✔\"),1,0)","v":1},1,1,1,1,1,1,1,1,1,1,1,1,1,1,1,1,1,1,1,1,1,1,1,1,1,1,1,1,0,0,0,0,0,0]
["Teamsprecher -->"]
["Meistereintrag  -->"]
[null,"DF","FRT","TU",null,null,"F","F",null,null,"F","F","F","F","F",null,null,"F","F","F","F","F",null,null,"F","F","F","F","F",null,null,"F","F","F","F","F"]
[null,null,"6",null,"Zeitabw. Beginn"]
[null,null,null,null,"Anwesenheitsk."]
[null,"Kurti Kurt",{"$f":"(C27)-(Januar!AK28+#REF!+#REF!+#REF!+#REF!+#REF!+#REF!+#REF!+#REF!+#REF!+#REF!+#REF!+#REF!)","v":{"$error":"#REF!"}},{"$f":"(D27+30)-(Januar!AL28+#REF!+#REF!+#REF!+#REF!+#REF!+#REF!+#REF!+#REF!+#REF!+#REF!+#REF!+#REF!)","v":{"$error":"#REF!"}},"Zeitabw. Ende"]
[null,null,null,null,"Tageszulage"]
[null,null,null,null,"Bezahlart"]
["Teamsprecher -->"]
["Meistereintrag  -->"]
[null,null,"FRT","TU",null,null,"F","F",null,null,"F","F","F","F","F",null,null,"F","F","F","F","F",null,null,"F","F","F","F","F",null,null,"F","F","F","F","F"]
[null,null,"6",null,"Zeitabw. Beginn"]
[null,null,null,null,"Anwesenheitsk.",null,null,null,null,null,null,null,null,null,null,null,null,null,null,null,null,null,null,null,null,null,null,null,null,null,null,null,null,null,null,null,{"$f":"COUNTIF(F36:AJ36,\"FRT\")","v":0},{"$f":"COUNTIF(F36:AJ36,\"TU\")","v":0},{"$f":"COUNTIF(F36:AJ36,\"✔\")","v":0},{"$f":"COUNTIF(F36:AJ36,\"eaz\")","v":0},{"$f":"COUNTIF(F36:AJ36,\"ema\")","v":0},{"$f":"COUNTIF(F36:AJ36,\"AUB\")","v":0}]
[null,"Rudi Rüssel",{"$f":"(C35)-(Januar!AK36+#REF!+#REF!+#REF!+#REF!+#REF!+#REF!+#REF!+#REF!+#REF!+#REF!+#REF!+#REF!)","v":{"$error":"#REF!"}},{"$f":"(D35+30)-(Januar!AL36+#REF!+#REF!+#REF!+#REF!+#REF!+#REF!+#REF!+#REF!+#REF!+#REF!+#REF!+#REF!)","v":{"$error":"#REF!"}},"Zeitabw. Ende"]
[null,null,null,null,"Tageszulage"]
[null,null,null,null,"Bezahlart"]
[null,null,null,null,null,{"$f":"IF(OR(F36=\"\",F36=\"✔\"),1,0)","v":1},{"$f":"IF(OR(G36=\"\",G36=\"✔\"),1,0)","v":1},{"$f":"IF(OR(H36=\"\",H36=\"✔\"),1,0)","v":1},1,1,1,1,1,1,1,1,1,1,1,1,1,1,1,1,1,1,1,1,1,1,1,1,1,1,1,1]
["Teamsprecher -->"]
["Meistereintrag  -->"]
[null,null,"FRT","TU",null,null,"F","F",null,null,"F","F","F","F","F",null,null,"F","F","F","F","F",null,null,"F","F","F","F","F",null,null,"F","F","F","F","F"]
[null,null,"6",null,"Zeitabw. Beginn"]
[null,null,null,null,"Anwesenheitsk.",null,null,null,null,null,null,null,null,null,null,null,null,null,null,null,null,null,null,null,null,null,null,null,null,null,null,null,null,null,null,null,{"$f":"COUNTIF(F45:AJ45,\"FRT\")","v":0},{"$f":"COUNTIF(F45:AJ45,\"TU\")","v":0},{"$f":"COUNTIF(G45:AL45,\"✔\")","v":0},{"$f":"COUNTIF(H45:AM45,\"eaz\")","v":0},{"$f":"COUNTIF(I45:AN45,\"ema\")","v":0},{"$f":"COUNTIF(J45:AO45,\"AUB\")","v":0}]
[null,null,{"$f":"(C44)-(Januar!AK45+#REF!+#REF!+#REF!+#REF!+#REF!+#REF!+#REF!+#REF!+#REF!+#REF!+#REF!+#REF!)","v":{"$error":"#REF!"}},{"$f":"(D44+30)-(Januar!AL45+#REF!+#REF!+#REF!+#REF!+#REF!+#REF!+#REF!+#REF!+#REF!+#REF!+#REF!+#REF!)","v":{"$error":"#REF!"}},"Zeitabw. Ende"]
[null,null,null,null,"Tageszulage"]
[null,null,null,null,"Bezahlart"]
[null,null,null,null,null,{"$f":"IF(OR(F45=\"\",F45=\"✔\"),1,0)","v":1},{"$f":"IF(OR(G45=\"\",G45=\"✔\"),1,0)","v":1},{"$f":"IF(OR(H45=\"\",H45=\"✔\"),1,0)","v":1},1,1,1,1,1,1,1,1,1,1,1,1,1,1,1,1,1,1,1,1,1,1,1,1,1,1,1,1]
["Teamsprecher -->"]
["Meistereintrag  -->"]
[null,"S3","FRT","TU",null,null,"F","F",null,null,"S","S","S","S","S",null,null,"F","F","F","F","F",null,null,"S","S","S","S","S",null,null,"F","F","F","F","F"]
[null,null,"6",null,"Zeitabw. Beginn"]
[null,null,null,null,"Anwesenheitsk.",null,null,null,null,null,null,null,null,null,null,null,null,null,null,null,null,null,null,null,null,null,null,null,null,null,null,null,null,null,null,null,{"$f":"COUNTIF(F54:AJ54,\"FRT\")","v":0},{"$f":"COUNTIF(F54:AJ54,\"TU\")","v":0},{"$f":"COUNTIF(G54:AL54,\"✔\")","v":0},{"$f":"COUNTIF(H54:AM54,\"eaz\")","v":0},{"$f":"COUNTIF(I54:AN54,\"ema\")","v":0},{"$f":"COUNTIF(J54:AO54,\"AUB\")","v":0}]
[null,null,{"$f":"(C53)-(Januar!AK54+#REF!+#REF!+#REF!+#REF!+#REF!+#REF!+#REF!+#REF!+#REF!+#REF!+#REF!+#REF!)","v":{"$error":"#REF!"}},{"$f":"(D53+30)-(Januar!AL54+#REF!+#REF!+#REF!+#REF!+#REF!+#REF!+#REF!+#REF!+#REF!+#REF!+#REF!+#REF!)","v":{"$error":"#REF!"}},"Zeitabw. Ende"]
[null,null,null,null,"Tageszulage"]
[null,null,null,null,"Bezahlart"]
[null,null,null,null,null,{"$f":"IF(OR(F54=\"\",F54=\"✔\"),1,0)","v":1},{"$f":"IF(OR(G54=\"\",G54=\"✔\"),1,0)","v":1},{"$f":"IF(OR(H54=\"\",H54=\"✔\"),1,0)","v":1},1,1,1,1,1,1,1,1,1,1,1,1,1,1,1,1,1,1,1,1,1,1,1,1,1,1,1,1]
["Teamsprecher -->"]
["Meistereintrag  -->"]
[null,null,"FRT","TU",null,null,"F","F",null,null,"S","S","S","S","S",null,null,"F","F","F","F","F",null,null,"S","S","S","S","S",null,null,"F","F","F","F","F"]
[null,null,"6",null,"Zeitabw. Beginn"]
[null,null,null,null,"Anwesenheitsk.",null,null,null,null,null,null,null,null,null,null,null,null,null,null,null,null,null,null,null,null,null,null,null,null,null,null,null,null,null,null,null,{"$f":"COUNTIF(F63:AJ63,\"FRT\")","v":0},{"$f":"COUNTIF(F63:AJ63,\"TU\")","v":0},{"$f":"COUNTIF(G63:AL63,\"✔\")","v":0},{"$f":"COUNTIF(H63:AM63,\"eaz\")","v":0},{"$f":"COUNTIF(I63:AN63,\"ema\")","v":0},{"$f":"COUNTIF(J63:AO63,\"AUB\")","v":0}]
[null,null,{"$f":"(C62)-(Januar!AK63+#REF!+#REF!+#REF!+#REF!+#REF!+#REF!+#REF!+#REF!+#REF!+#REF!+#REF!+#REF!)","v":{"$error":"#REF!"}},{"$f":"(D62+30)-(Januar!AL63+#REF!+#REF!+#REF!+#REF!+#REF!+#REF!+#REF!+#REF!+#REF!+#REF!+#REF!+#REF!)","v":{"$error":"#REF!"}},"Zeitabw. Ende"]
[null,null,null,null,"Tageszulage"]
[null,null,null,null,"Bezahlart"]
[null,null,null,null,null,{"$f":"IF(OR(F63=\"\",F63=\"✔\"),1,0)","v":1},{"$f":"IF(OR(G63=\"\",G63=\"✔\"),1,0)","v":1},{"$f":"IF(OR(H63=\"\",H63=\"✔\"),1,0)","v":1},1,1,1,1,1,1,1,1,1,1,1,1,1,1,1,1,1,1,1,1,1,1,1,1,1,1,1,1]
["Teamsprecher -->"]
["Meistereintrag  -->"]
[null,null,"FRT","TU"]
[null,null,"6",null,"Zeitabw. Beginn"]
[null,null,null,null,"Anwesenheitsk.",null,null,null,null,null,null,null,null,null,null,null,null,null,null,null,null,null,null,null,null,null,null,null,null,null,null,null,null,null,null,null,{"$f":"COUNTIF(F72:AJ72,\"FRT\")","v":0},{"$f":"COUNTIF(F72:AJ72,\"TU\")","v":0},{"$f":"COUNTIF(G72:AL72,\"✔\")","v":0},{"$f":"COUNTIF(H72:AM72,\"eaz\")","v":0},{"$f":"COUNTIF(I72:AN72,\"ema\")","v":0},{"$f":"COUNTIF(J72:AO72,\"AUB\")","v":0}]
[null,null,{"$f":"(C71)-(Januar!AK72+#REF!+#REF!+#REF!+#REF!+#REF!+#REF!+#REF!+#REF!+#REF!+#REF!+#REF!+#REF!)","v":{"$error":"#REF!"}},{"$f":"(D71+30)-(Januar!AL72+#REF!+#REF!+#REF!+#REF!+#REF!+#REF!+#REF!+#REF!+#REF!+#REF!+#REF!+#REF!)","v":{"$error":"#REF!"}},"Zeitabw. Ende"]
[null,null,null,null,"Tageszulage"]
[null,null,null,null,"Bezahlart"]
[null,null,null,null,null,{"$f":"IF(OR(F72=\"\",F72=\"✔\"),1,0)","v":1},{"$f":"IF(OR(G72=\"\",G72=\"✔\"),1,0)","v":1},{"$f":"IF(OR(H72=\"\",H72=\"✔\"),1,0)","v":1},1,1,1,1,1,1,1,1,1,1,1,1,1,1,1,1,1,1,1,1,1,1,1,1,1,1,1,1]
["Teamsprecher -->"]
["Meistereintrag  -->"]
[null,null,"FRT","TU"]
[null,null,"6",null,"Zeitabw. Beginn"]
[null,null,null,null,"Anwesenheitsk.",null,null,null,null,null,null,null,null,null,null,null,null,null,null,null,null,null,null,null,null,null,null,null,null,null,null,null,null,null,null,null,{"$f":"COUNTIF(F81:AJ81,\"FRT\")","v":0},{"$f":"COUNTIF(F81:AJ81,\"TU\")","v":0},{"$f":"COUNTIF(G81:AL81,\"✔\")","v":0},{"$f":"COUNTIF(H81:AM81,\"eaz\")","v":0},{"$f":"COUNTIF(I81:AN81,\"ema\")","v":0},{"$f":"COUNTIF(J81:AO81,\"AUB\")","v":0}]
[null,null,{"$f":"(C80)-(Januar!AK81+#REF!+#REF!+#REF!+#REF!+#REF!+#REF!+#REF!+#REF!+#REF!+#REF!+#REF!+#REF!)","v":{"$error":"#REF!"}},{"$f":"(D80+30)-(Januar!AL81+#REF!+#REF!+#REF!+#REF!+#REF!+#REF!+#REF!+#REF!+#REF!+#REF!+#REF!+#REF!)","v":{"$error":"#REF!"}},"Zeitabw. Ende"]
[null,null,null,null,"Tageszulage"]
[null,null,null,null,"Bezahlart"]
[null,null,null,null,null,{"$f":"IF(OR(F81=\"\",F81=\"✔\"),1,0)","v":1},{"$f":"IF(OR(G81=\"\",G81=\"✔\"),1,0)","v":1},{"$f":"IF(OR(H81=\"\",H81=\"✔\"),1,0)","v":1},1,1,1,1,1,1,1,1,1,1,1,1,1,1,1,1,1,1,1,1,1,1,1,1,1,1,1,1]
["Teamsprecher -->"]
["Meistereintrag  -->"]
[null,null,"FRT","TU"]
[null,null,"6",null,"Zeitabw. Beginn"]
[null,null,null,null,"Anwesenheitsk.",null,null,null,null,null,null,null,null,null,null,null,null,null,null,null,null,null,null,null,null,null,null,null,null,null,null,null,null,null,null,null,{"$f":"COUNTIF(F90:AJ90,\"FRT\")","v":0},{"$f":"COUNTIF(F90:AJ90,\"TU\")","v":0},{"$f":"COUNTIF(G90:AL90,\"✔\")","v":0},{"$f":"COUNTIF(H90:AM90,\"eaz\")","v":0},{"$f":"COUNTIF(I90:AN90,\"ema\")","v":0},{"$f":"COUNTIF(J90:AO90,\"AUB\")","v":0}]
[null,null,{"$f":"(C89)-(Januar!AK90+#REF!+#REF!+#REF!+#REF!+#REF!+#REF!+#REF!+#REF!+#REF!+#REF!+#REF!+#REF!)","v":{"$error":"#REF!"}},{"$f":"(D89+30)-(Januar!AL90+#REF!+#REF!+#REF!+#REF!+#REF!+#REF!+#REF!+#REF!+#REF!+#REF!+#REF!+#REF!)","v":{"$error":"#REF!"}},"Zeitabw. Ende"]
[null,null,null,null,"Tageszulage"]
[null,null,null,null,"Bezahlart"]
[null,null,null,null,null,{"$f":"IF(OR(F90=\"\",F90=\"✔\"),1,0)","v":1},{"$f":"IF(OR(G90=\"\",G90=\"✔\"),1,0)","v":1},{"$f":"IF(OR(H90=\"\",H90=\"✔\"),1,0)","v":1},1,1,1,1,1,1,1,1,1,1,1,1,1,1,1,1,1,1,1,1,1,1,1,1,1,1,1,1]
["Teamsprecher -->"]
["Meistereintrag  -->"]
[null,"S4","FRT","TU",null,null,"S","S",null,null,"F","F","F","F","F",null,null,"S","S","S","S","S",null,null,"F","F","F","F","F",null,null,"S","S","S","S","S"]
[null,null,"6",null,"Zeitabw. Beginn"]
[null,null,null,null,"Anwesenheitsk.",null,null,null,null,null,null,null,null,null,null,null,null,null,null,null,null,null,null,null,null,null,null,null,null,null,null,null,null,null,null,null,{"$f":"COUNTIF(F99:AJ99,\"FRT\")","v":0},{"$f":"COUNTIF(F99:AJ99,\"TU\")","v":0},{"$f":"COUNTIF(G99:AL99,\"✔\")","v":0},{"$f":"COUNTIF(H99:AM99,\"eaz\")","v":0},{"$f":"COUNTIF(I99:AN99,\"ema\")","v":0},{"$f":"COUNTIF(J99:AO99,\"AUB\")","v":0}]
[null,null,{"$f":"(C98)-(Januar!AK99+#REF!+#REF!+#REF!+#REF!+#REF!+#REF!+#REF!+#REF!+#REF!+#REF!+#REF!+#REF!)","v":{"$error":"#REF!"}},{"$f":"(D98+30)-(Januar!AL99+#REF!+#REF!+#REF!+#REF!+#REF!+#REF!+#REF!+#REF!+#REF!+#REF!+#REF!+#REF!)","v":{"$error":"#REF!"}},"Zeitabw. Ende"]
[null,null,null,null,"Tageszulage"]
[null,null,null,null,"Bezahlart"]
[null,null,null,null,null,{"$f":"IF(OR(F99=\"\",F99=\"✔\"),1,0)","v":1},{"$f":"IF(OR(G99=\"\",G99=\"✔\"),1,0)","v":1},{"$f":"IF(OR(H99=\"\",H99=\"✔\"),1,0)","v":1},1,1,1,1,1,1,1,1,1,1,1,1,1,1,1,1,1,1,1,1,1,1,1,1,1,1,1,1]
["Teamsprecher -->"]
["Meistereintrag  -->"]
[null,null,"FRT","TU",null,null,"S","S",null,null,"F","F","F","F","F",null,null,"S","S","S","S","S",null,null,"F","F","F","F","F",null,null,"S","S","S","S","S"]
[null,null,"6",null,"Zeitabw. Beginn"]
[null,null,null,null,"Anwesenheitsk.",null,null,null,null,null,null,null,null,null,null,null,null,null,null,null,null,null,null,null,null,null,null,null,null,null,null,null,null,null,null,null,{"$f":"COUNTIF(F108:AJ108,\"FRT\")","v":0},{"$f":"COUNTIF(F108:AJ108,\"TU\")","v":0},{"$f":"COUNTIF(G108:AL108,\"✔\")","v":0},{"$f":"COUNTIF(H108:AM108,\"eaz\")","v":0},{"$f":"COUNTIF(I108:AN108,\"ema\")","v":0},{"$f":"COUNTIF(J108:AO108,\"AUB\")","v":0}]
[null,null,{"$f":"(C107)-(Januar!AK108+#REF!+#REF!+#REF!+#REF!+#REF!+#REF!+#REF!+#REF!+#REF!+#REF!+#REF!+#REF!)","v":{"$error":"#REF!"}},{"$f":"(D107+30)-(Januar!AL108+#REF!+#REF!+#REF!+#REF!+#REF!+#REF!+#REF!+#REF!+#REF!+#REF!+#REF!+#REF!)","v":{"$error":"#REF!"}},"Zeitabw. Ende"]
[null,null,null,null,"Tageszulage"]
[null,null,null,null,"Bezahlart"]
[null,null,null,null,null,{"$f":"IF(OR(F108=\"\",F108=\"✔\"),1,0)","v":1},{"$f":"IF(OR(G108=\"\",G108=\"✔\"),1,0)","v":1},{"$f":"IF(OR(H108=\"\",H108=\"✔\"),1,0)","v":1},1,1,1,1,1,1,1,1,1,1,1,1,1,1,1,1,1,1,1,1,1,1,1,1,1,1,1,1]
["Teamsprecher -->"]
["Meistereintrag  -->"]
[null,null,"FRT","TU"]
[null,null,"6",null,"Zeitabw. Beginn"]
[null,null,null,null,"Anwesenheitsk.",null,null,null,null,null,null,null,null,null,null,null,null,null,null,null,null,null,null,null,null,null,null,null,null,null,null,null,null,null,null,null,{"$f":"COUNTIF(F117:AJ117,\"FRT\")","v":0},{"$f":"COUNTIF(F117:AJ117,\"TU\")","v":0},{"$f":"COUNTIF(G117:AL117,\"✔\")","v":0},{"$f":"COUNTIF(H117:AM117,\"eaz\")","v":0},{"$f":"COUNTIF(I117:AN117,\"ema\")","v":0},{"$f":"COUNTIF(J117:AO117,\"AUB\")","v":0}]
[null,null,{"$f":"(C116)-(Januar!AK117+#REF!+#REF!+#REF!+#REF!+#REF!+#REF!+#REF!+#REF!+#REF!+#REF!+#REF!+#REF!)","v":{"$error":"#REF!"}},{"$f":"(D116+30)-(Januar!AL117+#REF!+#REF!+#REF!+#REF!+#REF!+#REF!+#REF!+#REF!+#REF!+#REF!+#REF!+#REF!)","v":{"$error":"#REF!"}},"Zeitabw. Ende"]
[null,null,null,null,"Tageszulage"]
[null,null,null,null,"Bezahlart"]
[null,null,null,null,null,{"$f":"IF(OR(F117=\"\",F117=\"✔\"),1,0)","v":1},{"$f":"IF(OR(G117=\"\",G117=\"✔\"),1,0)","v":1},{"$f":"IF(OR(H117=\"\",H117=\"✔\"),1,0)","v":1},1,1,1,1,1,1,1,1,1,1,1,1,1,1,1,1,1,1,1,1,1,1,1,1,1,1,1,1]
["Teamsprecher -->"]
["Meistereintrag  -->"]
[null,null,"FRT","TU"]
[null,null,"6",null,"Zeitabw. Beginn"]
[null,null,null,null,"Anwesenheitsk.",null,null,null,null,null,null,null,null,null,null,null,null,null,null,null,null,null,null,null,null,null,null,null,null,null,null,null,null,null,null,null,{"$f":"COUNTIF(F126:AJ126,\"FRT\")","v":0},{"$f":"COUNTIF(F126:AJ126,\"TU\")","v":0},{"$f":"COUNTIF(G126:AL126,\"✔\")","v":0},{"$f":"COUNTIF(H126:AM126,\"eaz\")","v":0},{"$f":"COUNTIF(I126:AN126,\"ema\")","v":0},{"$f":"COUNTIF(J126:AO126,\"AUB\")","v":0}]
[null,null,{"$f":"(C125)-(Januar!AK126+#REF!+#REF!+#REF!+#REF!+#REF!+#REF!+#REF!+#REF!+#REF!+#REF!+#REF!+#REF!)","v":{"$error":"#REF!"}},{"$f":"(D125+30)-(Januar!AL126+#REF!+#REF!+#REF!+#REF!+#REF!+#REF!+#REF!+#REF!+#REF!+#REF!+#REF!+#REF!)","v":{"$error":"#REF!"}},"Zeitabw. Ende"]
[null,null,null,null,"Tageszulage"]
[null,null,null,null,"Bezahlart"]
[null,null,null,null,null,{"$f":"IF(OR(F126=\"\",F126=\"✔\"),1,0)","v":1},{"$f":"IF(OR(G126=\"\",G126=\"✔\"),1,0)","v":1},{"$f":"IF(OR(H126=\"\",H126=\"✔\"),1,0)","v":1},1,1,1,1,1,1,1,1,1,1,1,1,1,1,1,1,1,1,1,1,1,1,1,1,1,1,1,1]
["Teamsprecher -->"]
["Meistereintrag  -->",null,null,null,null,null,null,null,null,null,null,null,null,null,null,null,null,null,null,null,null,null,null,null,null,null,null,null,null,null,null,null,null,null,null,null,"AU","AU","AU","AU","AU","AU"]
[null,null,"FRT","TU"]
[null,null,"6",null,"Zeitabw. Beginn"]
[null,null,null,null,"Anwesenheitsk.",null,null,null,null,null,null,null,null,null,null,null,null,null,null,null,null,null,null,null,null,null,null,null,null,null,null,null,null,null,null,null,{"$f":"COUNTIF(F135:AJ135,\"FRT\")","v":0},{"$f":"COUNTIF(F135:AJ135,\"TU\")","v":0},{"$f":"COUNTIF(G135:AL135,\"✔\")","v":0},{"$f":"COUNTIF(H135:AM135,\"eaz\")","v":0},{"$f":"COUNTIF(I135:AN135,\"ema\")","v":0},{"$f":"COUNTIF(J135:AO135,\"AUB\")","v":0}]
[null,null,{"$f":"(C134)-(Januar!AK135+#REF!+#REF!+#REF!+#REF!+#REF!+#REF!+#REF!+#REF!+#REF!+#REF!+#REF!+#REF!)","v":{"$error":"#REF!"}},{"$f":"(D134+30)-(Januar!AL135+#REF!+#REF!+#REF!+#REF!+#REF!+#REF!+#REF!+#REF!+#REF!+#REF!+#REF!+#REF!)","v":{"$error":"#REF!"}},"Zeitabw. Ende"]
[null,null,null,null,"Tageszulage"]
[null,null,null,null,"Bezahlart"]
[null,null,null,null,null,{"$f":"IF(OR(F135=\"\",F135=\"✔\"),1,0)","v":1},{"$f":"IF(OR(G135=\"\",G135=\"✔\"),1,0)","v":1},{"$f":"IF(OR(H135=\"\",H135=\"✔\"),1,0)","v":1},1,1,1,1,1,1,1,1,1,1,1,1,1,1,1,1,1,1,1,1,1,1,1,1,1,1,1,1]
["Teamsprecher -->"]
["Meistereintrag  -->"]
[null,"Schicht 3A","FRT","TU",null,null,null,"F","F",null,"S","S","N","N","EAZ",null,null,"F","F","S","S","N","N",null,null,"EAZ","F","F","S","S",null,"N","N",null,null,"F"]
[null,null,"6",null,"Zeitabw. Beginn"]
[null,null,null,null,"Anwesenheitsk.",null,null,null,null,null,null,null,null,null,null,null,null,null,null,null,null,null,null,null,null,null,null,null,null,null,null,null,null,null,null,null,{"$f":"COUNTIF(F144:AJ144,\"FRT\")","v":0},{"$f":"COUNTIF(F144:AJ144,\"TU\")","v":0},{"$f":"COUNTIF(G144:AL144,\"✔\")","v":0},{"$f":"COUNTIF(H144:AM144,\"eaz\")","v":0},{"$f":"COUNTIF(I144:AN144,\"ema\")","v":0},{"$f":"COUNTIF(J144:AO144,\"AUB\")","v":0}]
[null,null,{"$f":"(C143)-(Januar!AK144+#REF!+#REF!+#REF!+#REF!+#REF!+#REF!+#REF!+#REF!+#REF!+#REF!+#REF!+#REF!)","v":{"$error":"#REF!"}},{"$f":"(D143+30)-(Januar!AL144+#REF!+#REF!+#REF!+#REF!+#REF!+#REF!+#REF!+#REF!+#REF!+#REF!+#REF!+#REF!)","v":{"$error":"#REF!"}},"Zeitabw. Ende"]
[null,null,null,null,"Tageszulage"]
[null,null,null,null,"Bezahlart"]
[null,null,null,null,null,{"$f":"IF(OR(F144=\"\",F144=\"✔\"),1,0)","v":1},{"$f":"IF(OR(G144=\"\",G144=\"✔\"),1,0)","v":1},{"$f":"IF(OR(H144=\"\",H144=\"✔\"),1,0)","v":1},1,1,1,1,1,1,1,1,1,1,1,1,1,1,1,1,1,1,1,1,1,1,1,1,1,1,1,1]
["Teamsprecher -->"]
["Meistereintrag  -->"]
[null,null,"FRT","TU",null,null,null,"F","F",null,"S","S","N","N","EAZ",null,null,"F","F","S","S","N","N",null,null,"EAZ","F","F","S","S",null,"N","N",null,null,"F"]
[null,null,"6",null,"Zeitabw. Beginn"]
[null,null,null,null,"Anwesenheitsk.",null,null,null,null,null,null,null,null,null,null,null,null,null,null,null,null,null,null,null,null,null,null,null,null,null,null,null,null,null,null,null,{"$f":"COUNTIF(F153:AJ153,\"FRT\")","v":0},{"$f":"COUNTIF(F153:AJ153,\"TU\")","v":0},{"$f":"COUNTIF(G153:AL153,\"✔\")","v":0},{"$f":"COUNTIF(H153:AM153,\"eaz\")","v":0},{"$f":"COUNTIF(I153:AN153,\"ema\")","v":0},{"$f":"COUNTIF(J153:AO153,\"AUB\")","v":0}]
[null,null,{"$f":"(C152)-(Januar!AK153+#REF!+#REF!+#REF!+#REF!+#REF!+#REF!+#REF!+#REF!+#REF!+#REF!+#REF!+#REF!)","v":{"$error":"#REF!"}},{"$f":"(D152+30)-(Januar!AL153+#REF!+#REF!+#REF!+#REF!+#REF!+#REF!+#REF!+#REF!+#REF!+#REF!+#REF!+#REF!)","v":{"$error":"#REF!"}},"Zeitabw. Ende"]
[null,null,null,null,"Tageszulage"]
[null,null,null,null,"Bezahlart"]
[null,null,null,null,null,{"$f":"IF(OR(F153=\"\",F153=\"✔\"),1,0)","v":1},{"$f":"IF(OR(G153=\"\",G153=\"✔\"),1,0)","v":1},{"$f":"IF(OR(H153=\"\",H153=\"✔\"),1,0)","v":1},1,1,1,1,1,1,1,1,1,1,1,1,1,1,1,1,1,1,1,1,1,1,1,1,1,1,1,1]
["Teamsprecher -->"]
["Meistereintrag  -->"]
[null,null,"FRT","TU",null,null,null,"F","F",null,"S","S","N","N","EAZ",null,null,"F","F","S","S","N","N",null,null,"EAZ","F","F","S","S",null,"N","N",null,null,"F"]
[null,null,"6",null,"Zeitabw. Beginn"]
[null,null,null,null,"Anwesenheitsk.",null,null,null,null,null,null,null,null,null,null,null,null,null,null,null,null,null,null,null,null,null,null,null,null,null,null,null,null,null,null,null,{"$f":"COUNTIF(F162:AJ162,\"FRT\")","v":0},{"$f":"COUNTIF(F162:AJ162,\"TU\")","v":0},{"$f":"COUNTIF(G162:AL162,\"✔\")","v":0},{"$f":"COUNTIF(H162:AM162,\"eaz\")","v":0},{"$f":"COUNTIF(I162:AN162,\"ema\")","v":0},{"$f":"COUNTIF(J162:AO162,\"AUB\")","v":0}]
[null,null,{"$f":"(C161)-(Januar!AK162+#REF!+#REF!+#REF!+#REF!+#REF!+#REF!+#REF!+#REF!+#REF!+#REF!+#REF!+#REF!)","v":{"$error":"#REF!"}},{"$f":"(D161+30)-(Januar!AL162+#REF!+#REF!+#REF!+#REF!+#REF!+#REF!+#REF!+#REF!+#REF!+#REF!+#REF!+#REF!)","v":{"$error":"#REF!"}},"Zeitabw. Ende"]
[null,null,null,null,"Tageszulage"]
[null,null,null,null,"Bezahlart"]
[null,null,null,null,null,{"$f":"IF(OR(F162=\"\",F162=\"✔\"),1,0)","v":1},{"$f":"IF(OR(G162=\"\",G162=\"✔\"),1,0)","v":1},{"$f":"IF(OR(H162=\"\",H162=\"✔\"),1,0)","v":1},1,1,1,1,1,1,1,1,1,1,1,1,1,1,1,1,1,1,1,1,1,1,1,1,1,1,1,1]
["Teamsprecher -->"]
["Meistereintrag  -->"]
[null,"H22","FRT","TU",null,null,null,"F","F",null,"S","S","N","N","EAZ",null,null,"F","F","S","S","N","N",null,null,"EAZ","F","F","S","S",null,"N","N",null,null,"F"]
[null,null,"6",null,"Zeitabw. Beginn"]
[null,null,null,null,"Anwesenheitsk.",null,null,null,null,null,null,null,null,null,null,null,null,null,null,null,null,null,null,null,null,null,null,null,null,null,null,null,null,null,null,null,{"$f":"COUNTIF(F171:AJ171,\"FRT\")","v":0},{"$f":"COUNTIF(F171:AJ171,\"TU\")","v":0},{"$f":"COUNTIF(G171:AL171,\"✔\")","v":0},{"$f":"COUNTIF(H171:AM171,\"eaz\")","v":0},{"$f":"COUNTIF(I171:AN171,\"ema\")","v":0},{"$f":"COUNTIF(J171:AO171,\"AUB\")","v":0}]
[null,null,{"$f":"(C170)-(Januar!AK171+#REF!+#REF!+#REF!+#REF!+#REF!+#REF!+#REF!+#REF!+#REF!+#REF!+#REF!+#REF!)","v":{"$error":"#REF!"}},{"$f":"(D170+30)-(Januar!AL171+#REF!+#REF!+#REF!+#REF!+#REF!+#REF!+#REF!+#REF!+#REF!+#REF!+#REF!+#REF!)","v":{"$error":"#REF!"}},"Zeitabw. Ende"]
[null,null,null,null,"Tageszulage"]
[null,null,null,null,"Bezahlart"]
[null,null,null,null,null,{"$f":"IF(OR(F171=\"\",F171=\"✔\"),1,0)","v":1},{"$f":"IF(OR(G171=\"\",G171=\"✔\"),1,0)","v":1},{"$f":"IF(OR(H171=\"\",H171=\"✔\"),1,0)","v":1},1,1,1,1,1,1,1,1,1,1,1,1,1,1,1,1,1,1,1,1,1,1,1,1,1,1,1,1]
["Teamsprecher -->"]
["Meistereintrag  -->",null,null,null,null,null,null,null,null,null,null,null,null,null,null,null,null,null,null,null,null,null,null,null,null,null,null,null,null,null,null,null,null,null,null,null,null,null,null,null,null,null,null,null,null,null,"                                                                                                                                                                                                                                                                                                                                                                                                                                                                                                                                                                                                                                                                                                                                                                                                                                                                                              "]
[null,null,"FRT","TU"]
[null,null,"6",null,"Zeitabw. Beginn"]
[null,null,null,null,"Anwesenheitsk.",null,null,null,null,null,null,null,null,null,null,null,null,null,null,null,null,null,null,null,null,null,null,null,null,null,null,null,null,null,null,null,{"$f":"COUNTIF(F180:AJ180,\"FRT\")","v":0},{"$f":"COUNTIF(F180:AJ180,\"TU\")","v":0},{"$f":"COUNTIF(G180:AL180,\"✔\")","v":0},{"$f":"COUNTIF(H180:AM180,\"eaz\")","v":0},{"$f":"COUNTIF(I180:AN180,\"ema\")","v":0},{"$f":"COUNTIF(J180:AO180,\"AUB\")","v":0}]
[null,null,{"$f":"(C179)-(Januar!AK180+#REF!+#REF!+#REF!+#REF!+#REF!+#REF!+#REF!+#REF!+#REF!+#REF!+#REF!+#REF!)","v":{"$error":"#REF!"}},{"$f":"(D179+30)-(Januar!AL180+#REF!+#REF!+#REF!+#REF!+#REF!+#REF!+#REF!+#REF!+#REF!+#REF!+#REF!+#REF!)","v":{"$error":"#REF!"}},"Zeitabw. Ende"]
[null,null,null,null,"Tageszulage"]
[null,null,null,null,"Bezahlart"]
[null,null,null,null,null,{"$f":"IF(OR(F180=\"\",F180=\"✔\"),1,0)","v":1},{"$f":"IF(OR(G180=\"\",G180=\"✔\"),1,0)","v":1},{"$f":"IF(OR(H180=\"\",H180=\"✔\"),1,0)","v":1},1,1,1,1,1,1,1,1,1,1,1,1,1,1,1,1,1,1,1,1,1,1,1,1,1,1,1,1]
["Teamsprecher -->"]
["Meistereintrag  -->"]
[null,"Schicht 3B","FRT","TU",null,null,"N","EAZ",null,null,"F","F","S","S","N","N",null,null,"EAZ","F","F","S","S",null,"N","N",null,null,"F","F",null,"S","S","N","N","EAZ"]
[null,null,"6",null,"Zeitabw. Beginn"]
[null,null,null,null,"Anwesenheitsk.",null,null,null,null,null,null,null,null,null,null,null,null,null,null,null,null,null,null,null,null,null,null,null,null,null,null,null,null,null,null,null,{"$f":"COUNTIF(F189:AJ189,\"FRT\")","v":0},{"$f":"COUNTIF(F189:AJ189,\"TU\")","v":0},{"$f":"COUNTIF(G189:AL189,\"✔\")","v":0},{"$f":"COUNTIF(H189:AM189,\"eaz\")","v":0},{"$f":"COUNTIF(I189:AN189,\"ema\")","v":0},{"$f":"COUNTIF(J189:AO189,\"AUB\")","v":0}]
[null,null,{"$f":"(C188)-(Januar!AK189+#REF!+#REF!+#REF!+#REF!+#REF!+#REF!+#REF!+#REF!+#REF!+#REF!+#REF!+#REF!)","v":{"$error":"#REF!"}},{"$f":"(D188+30)-(Januar!AL189+#REF!+#REF!+#REF!+#REF!+#REF!+#REF!+#REF!+#REF!+#REF!+#REF!+#REF!+#REF!)","v":{"$error":"#REF!"}},"Zeitabw. Ende"]
[null,null,null,null,"Tageszulage"]
[null,null,null,null,"Bezahlart"]
[null,null,null,null,null,{"$f":"IF(OR(F189=\"\",F189=\"✔\"),1,0)","v":1},{"$f":"IF(OR(G189=\"\",G189=\"✔\"),1,0)","v":1},{"$f":"IF(OR(H189=\"\",H189=\"✔\"),1,0)","v":1},1,1,1,1,1,1,1,1,1,1,1,1,1,1,1,1,1,1,1,1,1,1,1,1,1,1,1,1]
["Teamsprecher -->"]
["Meistereintrag  -->"]
[null,null,"FRT","TU",null,null,"N","EAZ",null,null,"F","F","S","S","N","N",null,null,"EAZ","F","F","S","S",null,"N","N",null,null,"F","F",null,"S","S","N","N","EAZ"]
[null,null,"6",null,"Zeitabw. Beginn"]
[null,null,null,null,"Anwesenheitsk.",null,null,null,null,null,null,null,null,null,null,null,null,null,null,null,null,null,null,null,null,null,null,null,null,null,null,null,null,null,null,null,{"$f":"COUNTIF(F198:AJ198,\"FRT\")","v":0},{"$f":"COUNTIF(F198:AJ198,\"TU\")","v":0},{"$f":"COUNTIF(G198:AL198,\"✔\")","v":0},{"$f":"COUNTIF(H198:AM198,\"eaz\")","v":0},{"$f":"COUNTIF(I198:AN198,\"ema\")","v":0},{"$f":"COUNTIF(J198:AO198,\"AUB\")","v":0}]
[null,null,{"$f":"(C197)-(Januar!AK198+#REF!+#REF!+#REF!+#REF!+#REF!+#REF!+#REF!+#REF!+#REF!+#REF!+#REF!+#REF!)","v":{"$error":"#REF!"}},{"$f":"(D197+30)-(Januar!AL198+#REF!+#REF!+#REF!+#REF!+#REF!+#REF!+#REF!+#REF!+#REF!+#REF!+#REF!+#REF!)","v":{"$error":"#REF!"}},"Zeitabw. Ende"]
[null,null,null,null,"Tageszulage"]
[null,null,null,null,"Bezahlart"]
[null,null,null,null,null,{"$f":"IF(OR(F198=\"\",F198=\"✔\"),1,0)","v":1},{"$f":"IF(OR(G198=\"\",G198=\"✔\"),1,0)","v":1},{"$f":"IF(OR(H198=\"\",H198=\"✔\"),1,0)","v":1},1,1,1,1,1,1,1,1,1,1,1,1,1,1,1,1,1,1,1,1,1,1,1,1,1,1,1,1]
["Teamsprecher -->"]
["Meistereintrag  -->"]
[null,null,"FRT","TU",null,null,"N","EAZ",null,null,"F","F","S","S","N","N",null,null,"EAZ","F","F","S","S",null,"N","N",null,null,"F","F",null,"S","S","N","N","EAZ"]
[null,null,"6",null,"Zeitabw. Beginn"]
[null,null,null,null,"Anwesenheitsk.",null,null,null,null,null,null,null,null,null,null,null,null,null,null,null,null,null,null,null,null,null,null,null,null,null,null,null,null,null,null,null,{"$f":"COUNTIF(F207:AJ207,\"FRT\")","v":0},{"$f":"COUNTIF(F207:AJ207,\"TU\")","v":0},{"$f":"COUNTIF(G207:AL207,\"✔\")","v":0},{"$f":"COUNTIF(H207:AM207,\"eaz\")","v":0},{"$f":"COUNTIF(I207:AN207,\"ema\")","v":0},{"$f":"COUNTIF(J207:AO207,\"AUB\")","v":0}]
[null,null,{"$f":"(C206)-(Januar!AK207+#REF!+#REF!+#REF!+#REF!+#REF!+#REF!+#REF!+#REF!+#REF!+#REF!+#REF!+#REF!)","v":{"$error":"#REF!"}},{"$f":"(D206+30)-(Januar!AL207+#REF!+#REF!+#REF!+#REF!+#REF!+#REF!+#REF!+#REF!+#REF!+#REF!+#REF!+#REF!)","v":{"$error":"#REF!"}},"Zeitabw. Ende"]
[null,null,null,null,"Tageszulage"]
[null,null,null,null,"Bezahlart"]
[null,null,null,null,null,{"$f":"IF(OR(F207=\"\",F207=\"✔\"),1,0)","v":1},{"$f":"IF(OR(G207=\"\",G207=\"✔\"),1,0)","v":1},{"$f":"IF(OR(H207=\"\",H207=\"✔\"),1,0)","v":1},1,1,1,1,1,1,1,1,1,1,1,1,1,1,1,1,1,1,1,1,1,1,1,1,1,1,1,1]
["Teamsprecher -->"]
["Meistereintrag  -->"]
[null,"H22","FRT","TU",null,null,"N","EAZ",null,null,"F","F","S","S","N","N",null,null,"EAZ","F","F","S","S",null,"N","N",null,null,"F","F",null,"S","S","N","N","EAZ"]
[null,null,"6",null,"Zeitabw. Beginn"]
[null,null,null,null,"Anwesenheitsk.",null,null,null,null,null,null,null,null,null,null,null,null,null,null,null,null,null,null,null,null,null,null,null,null,null,null,null,null,null,null,null,{"$f":"COUNTIF(F216:AJ216,\"FRT\")","v":0},{"$f":"COUNTIF(F216:AJ216,\"TU\")","v":0},{"$f":"COUNTIF(G216:AL216,\"✔\")","v":0},{"$f":"COUNTIF(H216:AM216,\"eaz\")","v":0},{"$f":"COUNTIF(I216:AN216,\"ema\")","v":0},{"$f":"COUNTIF(J216:AO216,\"AUB\")","v":0}]
[null,null,{"$f":"(C215)-(Januar!AK216+#REF!+#REF!+#REF!+#REF!+#REF!+#REF!+#REF!+#REF!+#REF!+#REF!+#REF!+#REF!)","v":{"$error":"#REF!"}},{"$f":"(D215+30)-(Januar!AL216+#REF!+#REF!+#REF!+#REF!+#REF!+#REF!+#REF!+#REF!+#REF!+#REF!+#REF!+#REF!)","v":{"$error":"#REF!"}},"Zeitabw. Ende"]
[null,null,null,null,"Tageszulage"]
[null,null,null,null,"Bezahlart"]
[null,null,null,null,null,{"$f":"IF(OR(F216=\"\",F216=\"✔\"),1,0)","v":1},{"$f":"IF(OR(G216=\"\",G216=\"✔\"),1,0)","v":1},{"$f":"IF(OR(H216=\"\",H216=\"✔\"),1,0)","v":1},1,1,1,1,1,1,1,1,1,1,1,1,1,1,1,1,1,1,1,1,1,1,1,1,1,1,1,1]
["Teamsprecher -->"]
["Meistereintrag  -->"]
[null,null,"FRT","TU"]
[null,null,"6",null,"Zeitabw. Beginn"]
[null,null,null,null,"Anwesenheitsk.",null,null,null,null,null,null,null,null,null,null,null,null,null,null,null,null,null,null,null,null,null,null,null,null,null,null,null,null,null,null,null,{"$f":"COUNTIF(F225:AJ225,\"FRT\")","v":0},{"$f":"COUNTIF(F225:AJ225,\"TU\")","v":0},{"$f":"COUNTIF(G225:AL225,\"✔\")","v":0},{"$f":"COUNTIF(H225:AM225,\"eaz\")","v":0},{"$f":"COUNTIF(I225:AN225,\"ema\")","v":0},{"$f":"COUNTIF(J225:AO225,\"AUB\")","v":0}]
[null,null,{"$f":"(C224)-(Januar!AK225+#REF!+#REF!+#REF!+#REF!+#REF!+#REF!+#REF!+#REF!+#REF!+#REF!+#REF!+#REF!)","v":{"$error":"#REF!"}},{"$f":"(D224+30)-(Januar!AL225+#REF!+#REF!+#REF!+#REF!+#REF!+#REF!+#REF!+#REF!+#REF!+#REF!+#REF!+#REF!)","v":{"$error":"#REF!"}},"Zeitabw. Ende"]
[null,null,null,null,"Tageszulage"]
[null,null,null,null,"Bezahlart"]
[null,null,null,null,null,{"$f":"IF(OR(F225=\"\",F225=\"✔\"),1,0)","v":1},{"$f":"IF(OR(G225=\"\",G225=\"✔\"),1,0)","v":1},{"$f":"IF(OR(H225=\"\",H225=\"✔\"),1,0)","v":1},1,1,1,1,1,1,1,1,1,1,1,1,1,1,1,1,1,1,1,1,1,1,1,1,1,1,1,1]
["Teamsprecher -->"]
["Meistereintrag  -->"]
[null,"Schicht 3C","FRT","TU",null,null,"S","N","N",null,null,"EAZ","F","F","S","S",null,"N","N",null,null,"F","F",null,"S","S","N","N","EAZ",null,null,"F","F","S","S","N"]
[null,null,"6",null,"Zeitabw. Beginn"]
[null,null,null,null,"Anwesenheitsk.",null,null,null,null,null,null,null,null,null,null,null,null,null,null,null,null,null,null,null,null,null,null,null,null,null,null,"EAZ","EAZ","EAZ","EAZ","TU",{"$f":"COUNTIF(F234:AJ234,\"FRT\")","v":0},{"$f":"COUNTIF(F234:AJ234,\"TU\")","v":1},{"$f":"COUNTIF(G234:AL234,\"✔\")","v":0},{"$f":"COUNTIF(H234:AM234,\"eaz\")","v":4},{"$f":"COUNTIF(I234:AN234,\"ema\")","v":0},{"$f":"COUNTIF(J234:AO234,\"AUB\")","v":0}]
[null,null,{"$f":"(C233)-(Januar!AK234+#REF!+#REF!+#REF!+#REF!+#REF!+#REF!+#REF!+#REF!+#REF!+#REF!+#REF!+#REF!)","v":{"$error":"#REF!"}},{"$f":"(D233+30)-(Januar!AL234+#REF!+#REF!+#REF!+#REF!+#REF!+#REF!+#REF!+#REF!+#REF!+#REF!+#REF!+#REF!)","v":{"$error":"#REF!"}},"Zeitabw. Ende"]
[null,null,null,null,"Tageszulage"]
[null,null,null,null,"Bezahlart"]
[null,null,null,null,null,{"$f":"IF(OR(F234=\"\",F234=\"✔\"),1,0)","v":1},{"$f":"IF(OR(G234=\"\",G234=\"✔\"),1,0)","v":1},{"$f":"IF(OR(H234=\"\",H234=\"✔\"),1,0)","v":1},1,1,1,1,1,1,1,1,1,1,1,1,1,1,1,1,1,1,1,1,1,1,1,0,0,0,0,0]
["Teamsprecher -->"]
["Meistereintrag  -->"]
[null,null,"FRT","TU",null,null,"S","N","N",null,null,"EAZ","F","F","S","S",null,"N","N",null,null,"F","F",null,"S","S","N","N","EAZ",null,null,"F","F","S","S","N"]
[null,null,"6",null,"Zeitabw. Beginn"]
[null,null,null,null,"Anwesenheitsk.",null,null,null,null,null,null,null,null,null,null,null,null,null,null,null,null,null,null,null,null,null,null,null,null,null,null,null,null,null,null,null,{"$f":"COUNTIF(F243:AJ243,\"FRT\")","v":0},{"$f":"COUNTIF(F243:AJ243,\"TU\")","v":0},{"$f":"COUNTIF(G243:AL243,\"✔\")","v":0},{"$f":"COUNTIF(H243:AM243,\"eaz\")","v":0},{"$f":"COUNTIF(I243:AN243,\"ema\")","v":0},{"$f":"COUNTIF(J243:AO243,\"AUB\")","v":0}]
[null,null,{"$f":"(C242)-(Januar!AK243+#REF!+#REF!+#REF!+#REF!+#REF!+#REF!+#REF!+#REF!+#REF!+#REF!+#REF!+#REF!)","v":{"$error":"#REF!"}},{"$f":"(D242+30)-(Januar!AL243+#REF!+#REF!+#REF!+#REF!+#REF!+#REF!+#REF!+#REF!+#REF!+#REF!+#REF!+#REF!)","v":{"$error":"#REF!"}},"Zeitabw. Ende"]
[null,null,null,null,"Tageszulage"]
[null,null,null,null,"Bezahlart"]
[null,null,null,null,null,{"$f":"IF(OR(F243=\"\",F243=\"✔\"),1,0)","v":1},{"$f":"IF(OR(G243=\"\",G243=\"✔\"),1,0)","v":1},{"$f":"IF(OR(H243=\"\",H243=\"✔\"),1,0)","v":1},1,1,1,1,1,1,1,1,1,1,1,1,1,1,1,1,1,1,1,1,1,1,1,1,1,1,1,1]
["Teamsprecher -->"]
["Meistereintrag  -->"]
[null,null,"FRT","TU",null,null,"S","N","N",null,null,"EAZ","F","F","S","S",null,"N","N",null,null,"F","F",null,"S","S","N","N","EAZ",null,null,"F","F","S","S","N"]
[null,null,"6",null,"Zeitabw. Beginn"]
[null,null,null,null,"Anwesenheitsk.",null,null,null,null,null,null,null,null,null,null,null,null,null,null,null,null,null,null,null,null,null,null,null,null,null,null,null,null,null,null,null,{"$f":"COUNTIF(F252:AJ252,\"FRT\")","v":0},{"$f":"COUNTIF(F252:AJ252,\"TU\")","v":0},{"$f":"COUNTIF(G252:AL252,\"✔\")","v":0},{"$f":"COUNTIF(H252:AM252,\"eaz\")","v":0},{"$f":"COUNTIF(I252:AN252,\"ema\")","v":0},{"$f":"COUNTIF(J252:AO252,\"AUB\")","v":0}]
[null,null,{"$f":"(C251)-(Januar!AK252+#REF!+#REF!+#REF!+#REF!+#REF!+#REF!+#REF!+#REF!+#REF!+#REF!+#REF!+#REF!)","v":{"$error":"#REF!"}},{"$f":"(D251+30)-(Januar!AL252+#REF!+#REF!+#REF!+#REF!+#REF!+#REF!+#REF!+#REF!+#REF!+#REF!+#REF!+#REF!)","v":{"$error":"#REF!"}},"Zeitabw. Ende"]
[null,null,null,null,"Tageszulage"]
[null,null,null,null,"Bezahlart"]
[null,null,null,null,null,{"$f":"IF(OR(F252=\"\",F252=\"✔\"),1,0)","v":1},{"$f":"IF(OR(G252=\"\",G252=\"✔\"),1,0)","v":1},{"$f":"IF(OR(H252=\"\",H252=\"✔\"),1,0)","v":1},1,1,1,1,1,1,1,1,1,1,1,1,1,1,1,1,1,1,1,1,1,1,1,1,1,1,1,1]
["Teamsprecher -->"]
["Meistereintrag  -->"]
[null,"H22","FRT","TU",null,null,"S","N","N",null,null,"EAZ","F","F","S","S",null,"N","N",null,null,"F","F",null,"S","S","N","N","EAZ",null,null,"F","F","S","S","N"]
[null,null,"6",null,"Zeitabw. Beginn"]
[null,null,null,null,"Anwesenheitsk.",null,null,null,null,null,null,null,null,null,null,null,null,null,null,null,null,null,null,null,null,null,null,null,null,null,null,null,null,null,null,null,{"$f":"COUNTIF(F261:AJ261,\"FRT\")","v":0},{"$f":"COUNTIF(F261:AJ261,\"TU\")","v":0},{"$f":"COUNTIF(G261:AL261,\"✔\")","v":0},{"$f":"COUNTIF(H261:AM261,\"eaz\")","v":0},{"$f":"COUNTIF(I261:AN261,\"ema\")","v":0},{"$f":"COUNTIF(J261:AO261,\"AUB\")","v":0}]
[null,null,{"$f":"(C260)-(Januar!AK261+#REF!+#REF!+#REF!+#REF!+#REF!+#REF!+#REF!+#REF!+#REF!+#REF!+#REF!+#REF!)","v":{"$error":"#REF!"}},{"$f":"(D260+30)-(Januar!AL261+#REF!+#REF!+#REF!+#REF!+#REF!+#REF!+#REF!+#REF!+#REF!+#REF!+#REF!+#REF!)","v":{"$error":"#REF!"}},"Zeitabw. Ende"]
[null,null,null,null,"Tageszulage"]
[null,null,null,null,"Bezahlart"]
[null,null,null,null,null,{"$f":"IF(OR(F261=\"\",F261=\"✔\"),1,0)","v":1},{"$f":"IF(OR(G261=\"\",G261=\"✔\"),1,0)","v":1},{"$f":"IF(OR(H261=\"\",H261=\"✔\"),1,0)","v":1},1,1,1,1,1,1,1,1,1,1,1,1,1,1,1,1,1,1,1,1,1,1,1,1,1,1,1,1]
["Teamsprecher -->"]
["Meistereintrag  -->"]
[null,null,"FRT","TU"]
[null,null,"6",null,"Zeitabw. Beginn"]
[null,null,null,null,"Anwesenheitsk.",null,null,null,null,null,null,null,null,null,null,null,null,null,null,null,null,null,null,null,null,null,null,null,null,null,null,null,null,null,null,null,{"$f":"COUNTIF(F270:AJ270,\"FRT\")","v":0},{"$f":"COUNTIF(F270:AJ270,\"TU\")","v":0},{"$f":"COUNTIF(G270:AL270,\"✔\")","v":0},{"$f":"COUNTIF(H270:AM270,\"eaz\")","v":0},{"$f":"COUNTIF(I270:AN270,\"ema\")","v":0},{"$f":"COUNTIF(J270:AO270,\"AUB\")","v":0}]
[null,null,{"$f":"(C269)-(Januar!AK270+#REF!+#REF!+#REF!+#REF!+#REF!+#REF!+#REF!+#REF!+#REF!+#REF!+#REF!+#REF!)","v":{"$error":"#REF!"}},{"$f":"(D269+30)-(Januar!AL270+#REF!+#REF!+#REF!+#REF!+#REF!+#REF!+#REF!+#REF!+#REF!+#REF!+#REF!+#REF!)","v":{"$error":"#REF!"}},"Zeitabw. Ende"]
[null,null,null,null,"Tageszulage"]
[null,null,null,null,"Bezahlart"]
[null,null,null,null,null,{"$f":"IF(OR(F270=\"\",F270=\"✔\"),1,0)","v":1},{"$f":"IF(OR(G270=\"\",G270=\"✔\"),1,0)","v":1},{"$f":"IF(OR(H270=\"\",H270=\"✔\"),1,0)","v":1},1,1,1,1,1,1,1,1,1,1,1,1,1,1,1,1,1,1,1,1,1,1,1,1,1,1,1,1]
["Teamsprecher -->"]
["Meistereintrag  -->"]
[null,"Schicht 3D","FRT","TU",null,null,"F","S","S",null,"N","N",null,null,"F","F",null,"S","S","N","N","EAZ",null,null,"F","F","S","S","N","N",null,null,"EAZ","F","F","S"]
[null,null,"6",null,"Zeitabw. Beginn"]
[null,null,null,null,"Anwesenheitsk.",null,null,null,null,null,null,null,null,null,null,null,null,null,null,null,null,null,null,null,null,null,null,null,null,null,null,null,null,null,null,null,{"$f":"COUNTIF(F279:AJ279,\"FRT\")","v":0},{"$f":"COUNTIF(F279:AJ279,\"TU\")","v":0},{"$f":"COUNTIF(G279:AL279,\"✔\")","v":0},{"$f":"COUNTIF(H279:AM279,\"eaz\")","v":0},{"$f":"COUNTIF(I279:AN279,\"ema\")","v":0},{"$f":"COUNTIF(J279:AO279,\"AUB\")","v":0}]
[null,null,{"$f":"(C278)-(Januar!AK279+#REF!+#REF!+#REF!+#REF!+#REF!+#REF!+#REF!+#REF!+#REF!+#REF!+#REF!+#REF!)","v":{"$error":"#REF!"}},{"$f":"(D278+30)-(Januar!AL279+#REF!+#REF!+#REF!+#REF!+#REF!+#REF!+#REF!+#REF!+#REF!+#REF!+#REF!+#REF!)","v":{"$error":"#REF!"}},"Zeitabw. Ende"]
[null,null,null,null,"Tageszulage"]
[null,null,null,null,"Bezahlart"]
[null,null,null,null,null,{"$f":"IF(OR(F279=\"\",F279=\"✔\"),1,0)","v":1},{"$f":"IF(OR(G279=\"\",G279=\"✔\"),1,0)","v":1},{"$f":"IF(OR(H279=\"\",H279=\"✔\"),1,0)","v":1},1,1,1,1,1,1,1,1,1,1,1,1,1,1,1,1,1,1,1,1,1,1,1,1,1,1,1,1]
["Teamsprecher -->"]
["Meistereintrag  -->"]
[null,null,"FRT","TU",null,null,"F","S","S",null,"N","N",null,null,"F","F",null,"S","S","N","N","EAZ",null,null,"F","F","S","S","N","N",null,null,"EAZ","F","F","S"]
[null,null,"6",null,"Zeitabw. Beginn"]
[null,null,null,null,"Anwesenheitsk.",null,null,null,null,null,null,null,null,null,null,null,null,null,null,null,null,null,null,null,null,null,null,null,null,null,null,null,null,null,null,null,{"$f":"COUNTIF(F288:AJ288,\"FRT\")","v":0},{"$f":"COUNTIF(F288:AJ288,\"TU\")","v":0},{"$f":"COUNTIF(G288:AL288,\"✔\")","v":0},{"$f":"COUNTIF(H288:AM288,\"eaz\")","v":0},{"$f":"COUNTIF(I288:AN288,\"ema\")","v":0},{"$f":"COUNTIF(J288:AO288,\"AUB\")","v":0}]
[null,null,{"$f":"(C287)-(Januar!AK288+#REF!+#REF!+#REF!+#REF!+#REF!+#REF!+#REF!+#REF!+#REF!+#REF!+#REF!+#REF!)","v":{"$error":"#REF!"}},{"$f":"(D287+30)-(Januar!AL288+#REF!+#REF!+#REF!+#REF!+#REF!+#REF!+#REF!+#REF!+#REF!+#REF!+#REF!+#REF!)","v":{"$error":"#REF!"}},"Zeitabw. Ende"]
[null,null,null,null,"Tageszulage"]
[null,null,null,null,"Bezahlart"]
[null,null,null,null,null,{"$f":"IF(OR(F288=\"\",F288=\"✔\"),1,0)","v":1},{"$f":"IF(OR(G288=\"\",G288=\"✔\"),1,0)","v":1},{"$f":"IF(OR(H288=\"\",H288=\"✔\"),1,0)","v":1},1,1,1,1,1,1,1,1,1,1,1,1,1,1,1,1,1,1,1,1,1,1,1,1,1,1,1,1]
["Teamsprecher -->"]
["Meistereintrag  -->"]
[null,null,"FRT","TU",null,null,"F","S","S",null,"N","N",null,null,"F","F",null,"S","S","N","N","EAZ",null,null,"F","F","S","S","N","N",null,null,"EAZ","F","F","S"]
[null,null,"6",null,"Zeitabw. Beginn"]
[null,null,null,null,"Anwesenheitsk.",null,null,null,null,null,null,null,null,null,null,null,null,null,null,null,null,null,null,null,null,null,null,null,null,null,null,null,null,null,null,null,{"$f":"COUNTIF(F297:AJ297,\"FRT\")","v":0},{"$f":"COUNTIF(F297:AJ297,\"TU\")","v":0},{"$f":"COUNTIF(G297:AL297,\"✔\")","v":0},{"$f":"COUNTIF(H297:AM297,\"eaz\")","v":0},{"$f":"COUNTIF(I297:AN297,\"ema\")","v":0},{"$f":"COUNTIF(J297:AO297,\"AUB\")","v":0}]
[null,null,{"$f":"(C296)-(Januar!AK297+#REF!+#REF!+#REF!+#REF!+#REF!+#REF!+#REF!+#REF!+#REF!+#REF!+#REF!+#REF!)","v":{"$error":"#REF!"}},{"$f":"(D296+30)-(Januar!AL297+#REF!+#REF!+#REF!+#REF!+#REF!+#REF!+#REF!+#REF!+#REF!+#REF!+#REF!+#REF!)","v":{"$error":"#REF!"}},"Zeitabw. Ende"]
[null,null,null,null,"Tageszulage"]
[null,null,null,null,"Bezahlart"]
[null,null,null,null,null,{"$f":"IF(OR(F297=\"\",F297=\"✔\"),1,0)","v":1},{"$f":"IF(OR(G297=\"\",G297=\"✔\"),1,0)","v":1},{"$f":"IF(OR(H297=\"\",H297=\"✔\"),1,0)","v":1},1,1,1,1,1,1,1,1,1,1,1,1,1,1,1,1,1,1,1,1,1,1,1,1,1,1,1,1]
["Teamsprecher -->"]
["Meistereintrag  -->"]
[null,"H22","FRT","TU",null,null,"F","S","S",null,"N","N",null,null,"F","F",null,"S","S","N","N","EAZ",null,null,"F","F","S","S","N","N",null,null,"EAZ","F","F","S"]
[null,null,"6",null,"Zeitabw. Beginn"]
[null,null,null,null,"Anwesenheitsk.",null,null,null,null,null,null,null,null,null,null,null,null,null,null,null,null,null,null,null,null,null,null,null,null,null,null,null,null,null,null,null,{"$f":"COUNTIF(F306:AJ306,\"FRT\")","v":0},{"$f":"COUNTIF(F306:AJ306,\"TU\")","v":0},{"$f":"COUNTIF(G306:AL306,\"✔\")","v":0},{"$f":"COUNTIF(H306:AM306,\"eaz\")","v":0},{"$f":"COUNTIF(I306:AN306,\"ema\")","v":0},{"$f":"COUNTIF(J306:AO306,\"AUB\")","v":0}]
[null,null,{"$f":"(C305)-(Januar!AK306+#REF!+#REF!+#REF!+#REF!+#REF!+#REF!+#REF!+#REF!+#REF!+#REF!+#REF!+#REF!)","v":{"$error":"#REF!"}},{"$f":"(D305+30)-(Januar!AL306+#REF!+#REF!+#REF!+#REF!+#REF!+#REF!+#REF!+#REF!+#REF!+#REF!+#REF!+#REF!)","v":{"$error":"#REF!"}},"Zeitabw. Ende"]
[null,null,null,null,"Tageszulage"]
[null,null,null,null,"Bezahlart"]
[null,null,null,null,null,{"$f":"IF(OR(F306=\"\",F306=\"✔\"),1,0)","v":1},{"$f":"IF(OR(G306=\"\",G306=\"✔\"),1,0)","v":1},{"$f":"IF(OR(H306=\"\",H306=\"✔\"),1,0)","v":1},1,1,1,1,1,1,1,1,1,1,1,1,1,1,1,1,1,1,1,1,1,1,1,1,1,1,1,1]
["Teamsprecher -->"]
["Meistereintrag  -->"]
[null,null,"FRT","TU"]
[null,null,"6",null,"Zeitabw. Beginn"]
[null,null,null,null,"Anwesenheitsk.",null,null,null,null,null,null,null,null,null,null,null,null,null,null,null,null,null,null,null,null,null,null,null,null,null,null,null,null,null,null,null,{"$f":"COUNTIF(F315:AJ315,\"FRT\")","v":0},{"$f":"COUNTIF(F315:AJ315,\"TU\")","v":0},{"$f":"COUNTIF(G315:AL315,\"✔\")","v":0},{"$f":"COUNTIF(H315:AM315,\"eaz\")","v":0},{"$f":"COUNTIF(I315:AN315,\"ema\")","v":0},{"$f":"COUNTIF(J315:AO315,\"AUB\")","v":0}]
[null,null,{"$f":"(C314)-(Januar!AK315+#REF!+#REF!+#REF!+#REF!+#REF!+#REF!+#REF!+#REF!+#REF!+#REF!+#REF!+#REF!)","v":{"$error":"#REF!"}},{"$f":"(D314+30)-(Januar!AL315+#REF!+#REF!+#REF!+#REF!+#REF!+#REF!+#REF!+#REF!+#REF!+#REF!+#REF!+#REF!)","v":{"$error":"#REF!"}},"Zeitabw. Ende"]
[null,null,null,null,"Tageszulage"]
[null,null,null,null,"Bezahlart"]
[null,null,null,null,null,{"$f":"IF(OR(F315=\"\",F315=\"✔\"),1,0)","v":1},{"$f":"IF(OR(G315=\"\",G315=\"✔\"),1,0)","v":1},{"$f":"IF(OR(H315=\"\",H315=\"✔\"),1,0)","v":1},1,1,1,1,1,1,1,1,1,1,1,1,1,1,1,1,1,1,1,1,1,1,1,1,1,1,1,1]
["Teamsprecher -->"]
["Meistereintrag  -->"]
[null,null,"FRT","TU"]
[null,null,"6",null,"Zeitabw. Beginn"]
[null,null,null,null,"Anwesenheitsk.",null,null,null,null,null,null,null,null,null,null,null,null,null,null,null,null,null,null,null,null,null,null,null,null,null,null,null,null,null,null,null,{"$f":"COUNTIF(F324:AJ324,\"FRT\")","v":0},{"$f":"COUNTIF(F324:AJ324,\"TU\")","v":0},{"$f":"COUNTIF(G324:AL324,\"✔\")","v":0},{"$f":"COUNTIF(H324:AM324,\"eaz\")","v":0},{"$f":"COUNTIF(I324:AN324,\"ema\")","v":0},{"$f":"COUNTIF(J324:AO324,\"AUB\")","v":0}]
[null,null,{"$f":"(C323)-(Januar!AK324+#REF!+#REF!+#REF!+#REF!+#REF!+#REF!+#REF!+#REF!+#REF!+#REF!+#REF!+#REF!)","v":{"$error":"#REF!"}},{"$f":"(D323+30)-(Januar!AL324+#REF!+#REF!+#REF!+#REF!+#REF!+#REF!+#REF!+#REF!+#REF!+#REF!+#REF!+#REF!)","v":{"$error":"#REF!"}},"Zeitabw. Ende"]
[null,null,null,null,"Tageszulage"]
[null,null,null,null,"Bezahlart"]
[null,null,null,null,null,{"$f":"IF(OR(F324=\"\",F324=\"✔\"),1,0)","v":1},{"$f":"IF(OR(G324=\"\",G324=\"✔\"),1,0)","v":1},{"$f":"IF(OR(H324=\"\",H324=\"✔\"),1,0)","v":1},1,1,1,1,1,1,1,1,1,1,1,1,1,1,1,1,1,1,1,1,1,1,1,1,1,1,1,1]
["Teamsprecher -->"]
["Meistereintrag  -->"]
[null,null,"FRT","TU"]
[null,null,"6",null,"Zeitabw. Beginn"]
[null,null,null,null,"Anwesenheitsk.",null,null,null,null,null,null,null,null,null,null,null,null,null,null,null,null,null,null,null,null,null,null,null,null,null,null,null,null,null,null,null,{"$f":"COUNTIF(F333:AJ333,\"FRT\")","v":0},{"$f":"COUNTIF(F333:AJ333,\"TU\")","v":0},{"$f":"COUNTIF(G333:AL333,\"✔\")","v":0},{"$f":"COUNTIF(H333:AM333,\"eaz\")","v":0},{"$f":"COUNTIF(I333:AN333,\"ema\")","v":0},{"$f":"COUNTIF(J333:AO333,\"AUB\")","v":0}]
[null,null,{"$f":"(C332)-(Januar!AK333+#REF!+#REF!+#REF!+#REF!+#REF!+#REF!+#REF!+#REF!+#REF!+#REF!+#REF!+#REF!)","v":{"$error":"#REF!"}},{"$f":"(D332+30)-(Januar!AL333+#REF!+#REF!+#REF!+#REF!+#REF!+#REF!+#REF!+#REF!+#REF!+#REF!+#REF!+#REF!)","v":{"$error":"#REF!"}},"Zeitabw. Ende"]
[null,null,null,null,"Tageszulage"]
[null,null,null,null,"Bezahlart"]
[null,null,null,null,null,{"$f":"IF(OR(F333=\"\",F333=\"✔\"),1,0)","v":1},{"$f":"IF(OR(G333=\"\",G333=\"✔\"),1,0)","v":1},{"$f":"IF(OR(H333=\"\",H333=\"✔\"),1,0)","v":1},1,1,1,1,1,1,1,1,1,1,1,1,1,1,1,1,1,1,1,1,1,1,1,1,1,1,1,1]
["Teamsprecher -->"]
["Meistereintrag  -->"]
[null,null,"FRT","TU"]
[null,null,"6",null,"Zeitabw. Beginn"]
[null,null,null,null,"Anwesenheitsk.",null,null,null,null,null,null,null,null,null,null,null,null,null,null,null,null,null,null,null,null,null,null,null,null,null,null,null,null,null,null,null,{"$f":"COUNTIF(F342:AJ342,\"FRT\")","v":0},{"$f":"COUNTIF(F342:AJ342,\"TU\")","v":0},{"$f":"COUNTIF(G342:AL342,\"✔\")","v":0},{"$f":"COUNTIF(H342:AM342,\"eaz\")","v":0},{"$f":"COUNTIF(I342:AN342,\"ema\")","v":0},{"$f":"COUNTIF(J342:AO342,\"AUB\")","v":0}]
[null,null,{"$f":"(C341)-(Januar!AK342+#REF!+#REF!+#REF!+#REF!+#REF!+#REF!+#REF!+#REF!+#REF!+#REF!+#REF!+#REF!)","v":{"$error":"#REF!"}},{"$f":"(D341+30)-(Januar!AL342+#REF!+#REF!+#REF!+#REF!+#REF!+#REF!+#REF!+#REF!+#REF!+#REF!+#REF!+#REF!)","v":{"$error":"#REF!"}},"Zeitabw. Ende"]
[null,null,null,null,"Tageszulage"]
[null,null,null,null,"Bezahlart"]
[null,null,null,null,null,{"$f":"IF(OR(F342=\"\",F342=\"✔\"),1,0)","v":1},{"$f":"IF(OR(G342=\"\",G342=\"✔\"),1,0)","v":1},{"$f":"IF(OR(H342=\"\",H342=\"✔\"),1,0)","v":1},1,1,1,1,1,1,1,1,1,1,1,1,1,1,1,1,1,1,1,1,1,1,1,1,1,1,1,1]
["Teamsprecher -->"]
["Meistereintrag  -->"]
[null,null,"FRT","TU"]
[null,null,"6",null,"Zeitabw. Beginn"]
[null,null,null,null,"Anwesenheitsk.",null,null,null,null,null,null,null,null,null,null,null,null,null,null,null,null,null,null,null,null,null,null,null,null,null,null,null,null,null,null,null,{"$f":"COUNTIF(F351:AJ351,\"FRT\")","v":0},{"$f":"COUNTIF(F351:AJ351,\"TU\")","v":0},{"$f":"COUNTIF(G351:AL351,\"✔\")","v":0},{"$f":"COUNTIF(H351:AM351,\"eaz\")","v":0},{"$f":"COUNTIF(I351:AN351,\"ema\")","v":0},{"$f":"COUNTIF(J351:AO351,\"AUB\")","v":0}]
[null,null,{"$f":"(C350)-(Januar!AK351+#REF!+#REF!+#REF!+#REF!+#REF!+#REF!+#REF!+#REF!+#REF!+#REF!+#REF!+#REF!)","v":{"$error":"#REF!"}},{"$f":"(D350+30)-(Januar!AL351+#REF!+#REF!+#REF!+#REF!+#REF!+#REF!+#REF!+#REF!+#REF!+#REF!+#REF!+#REF!)","v":{"$error":"#REF!"}},"Zeitabw. Ende"]
[null,null,null,null,"Tageszulage"]
[null,null,null,null,"Bezahlart"]
[null,null,null,null,null,{"$f":"IF(OR(F351=\"\",F351=\"✔\"),1,0)","v":1},{"$f":"IF(OR(G351=\"\",G351=\"✔\"),1,0)","v":1},{"$f":"IF(OR(H351=\"\",H351=\"✔\"),1,0)","v":1},1,1,1,1,1,1,1,1,1,1,1,1,1,1,1,1,1,1,1,1,1,1,1,1,1,1,1,1]
["Teamsprecher -->"]
["Meistereintrag  -->"]
[null,null,"FRT","TU"]
[null,null,"6",null,"Zeitabw. Beginn"]
[null,null,null,null,"Anwesenheitsk.",null,null,null,null,null,null,null,null,null,null,null,null,null,null,null,null,null,null,null,null,null,null,null,null,null,null,null,null,null,null,null,{"$f":"COUNTIF(F360:AJ360,\"FRT\")","v":0},{"$f":"COUNTIF(F360:AJ360,\"TU\")","v":0},{"$f":"COUNTIF(G360:AL360,\"✔\")","v":0},{"$f":"COUNTIF(H360:AM360,\"eaz\")","v":0},{"$f":"COUNTIF(I360:AN360,\"ema\")","v":0},{"$f":"COUNTIF(J360:AO360,\"AUB\")","v":0}]
[null,null,{"$f":"(C359)-(Januar!AK360+#REF!+#REF!+#REF!+#REF!+#REF!+#REF!+#REF!+#REF!+#REF!+#REF!+#REF!+#REF!)","v":{"$error":"#REF!"}},{"$f":"(D359+30)-(Januar!AL360+#REF!+#REF!+#REF!+#REF!+#REF!+#REF!+#REF!+#REF!+#REF!+#REF!+#REF!+#REF!)","v":{"$error":"#REF!"}},"Zeitabw. Ende"]
[null,null,null,null,"Tageszulage"]
[null,null,null,null,"Bezahlart"]
[null,null,null,null,null,{"$f":"IF(OR(F360=\"\",F360=\"✔\"),1,0)","v":1},{"$f":"IF(OR(G360=\"\",G360=\"✔\"),1,0)","v":1},{"$f":"IF(OR(H360=\"\",H360=\"✔\"),1,0)","v":1},1,1,1,1,1,1,1,1,1,1,1,1,1,1,1,1,1,1,1,1,1,1,1,1,1,1,1,1]
["Teamsprecher -->"]
["Meistereintrag  -->"]

{"sheet":"Datenbank","index":2,"n_rows":185,"n_cols":4,"rows_kept":185,"cut":false,"hidden":true,"merged":[[3,13,3,16],[3,0,3,3]]}
["Zeitmakro"]
[]
[]
["Verbleibend"]
["Makro","00:04:57"]
["Uhrzeit",{"$f":"NOW()","v":44172.172847453701},{"$f":"TODAY()","v":"2024-12-08"},"Datum"]
[]
[]
[]
[]
[]
[]
[]
[]
[]
[]
[]
[]
[]
[]
[]
[]
[]
[]
[]
[]
[]
[]
[]
[]
[]
[]
[]
[]
[]
[]
[]
[]
[]
[]
[]
[]
[]
[]
[]
[]
[]
[]
[]
[]
[]
[]
[]
[]
[]
[]
[]
[]
[]
[]
[]
[]
[]
[]
[]
[]
[]
[]
[]
[]
[]
[]
[]
[]
[]
[]
[]
[]
[]
[]
[]
[]
[]
[]
[]
[]
[]
[]
[]
[]
[]
[]
[]
[]
[]
[]
[]
[]
[]
[]
[]
[]
[]
[]
[]
[]
[]
[]
[]
[]
[]
[]
[]
[]
[]
[]
[]
[]
[]
[]
[]
[]
[]
[]
[]
[]
[]
[]
[]
[]
[]
[]
[]
[]
[]
[]
[]
[]
[]
[]
[]
[]
[]
[]
[]
[]
[]
[]
[]
[]
[]
[]
[]
[]
[]
[]
[]
[]
[]
[]
[]
[]
[]
[]
[]
[]
[]
[]
[]
[]
[]
[]
[]
[]
[]
[]
[]
[]
[]
[]
[]
[]
[null,4151213]
[]
[null,"Bittner, Arne"]